Ref No.,Fund Type,Dept,Cost Centre Description    ,Description    ,Creditor Name    ,GL Code Net Amount,Payment date        
2,Revenue,CAHD,Bed Purchasing - South,Permanent Residential,.,1589.20, 07-Jun-2016
3,Revenue,CAHD,Bed Purchasing - South,Permanent Nursing,.,946.44, 07-Jun-2016
4,Revenue,CAHD,Bed purchasing - Elderly S117 - South,Permanent Nursing,.,7650.00, 07-Jun-2016
5,Revenue,CAHD,Bed purchasing - Elderly S117 - South,Permanent Nursing,.,1897.71, 07-Jun-2016
6,Revenue,CAHD,Bed Purchasing - South,Permanent Nursing,.,5850.72, 07-Jun-2016
7,Revenue,CAHD,Bed purchasing - Elderly S117 - South,Permanent Nursing,.,1355.16, 07-Jun-2016
8,Revenue,CAHD,18-25 Year Olds,Permanent Residential,1 St Georges House,13536.44, 07-Jun-2016
9,Revenue,CAHD,Supporting People Programme,Grants to Voluntary Bodies,1625 Independent People,17102.16, 01-Jun-2016
10,Revenue,CAHD,Home Care - Elderly - North,Supported Living,2430 The Quadrant,62522.85, 07-Jun-2016
11,Revenue,CAHD,Home Care - Elderly - North,Supported Living,2430 The Quadrant,49918.85, 07-Jun-2016
12,Revenue,CAHD,Home Care - Elderly - North,Supported Living,2430 The Quadrant,12604.40, 07-Jun-2016
13,Revenue,CAHD,Home Care - Elderly - North,Supported Living,3 Trees Community Support Limited,639.80, 07-Jun-2016
14,Revenue,CAHD,Home Care - Elderly - North,Day Care / Social Activities,3 Trees Community Support Ltd,1433.54, 02-Jun-2016
15,Revenue,CAHD,Home Care - Elderly - North,Other Small Contracts,3 Trees Community Support Ltd,833.56, 02-Jun-2016
16,Revenue,CAHD,Home Care - Elderly - North,Supported Living,3 Trees Community Support Ltd,9720.93, 02-Jun-2016
17,Revenue,CAHD,Home Care - Elderly - South,Day Care / Social Activities,3 Trees Community Support Ltd,91.60, 06-Jun-2016
18,Revenue,CAHD,Home Care - Elderly - North,Day Care / Social Activities,3 Trees Community Support Ltd,1319.04, 06-Jun-2016
19,Revenue,CAHD,Home Care - Elderly - North,Other Small Contracts,3 Trees Community Support Ltd,696.16, 06-Jun-2016
20,Revenue,CAHD,Home Care - Elderly - North,Supported Living,3 Trees Community Support Ltd,8485.27, 06-Jun-2016
21,Revenue,CAHD,Home Care - Elderly - South,Day Care / Social Activities,3 Trees Community Support Ltd,91.60, 22-Jun-2016
22,Revenue,CAHD,Home Care - Elderly - North,Day Care / Social Activities,3 Trees Community Support Ltd,1538.88, 22-Jun-2016
23,Revenue,CAHD,Home Care - Elderly - North,Other Small Contracts,3 Trees Community Support Ltd,696.16, 22-Jun-2016
24,Revenue,CAHD,Home Care - Elderly - North,Supported Living,3 Trees Community Support Ltd,9381.72, 22-Jun-2016
25,Revenue,CAHD,Home Care - Elderly - South,Day Care / Social Activities,3 Trees Community Support Ltd,91.60, 15-Jun-2016
26,Revenue,CAHD,Home Care - Elderly - North,Day Care / Social Activities,3 Trees Community Support Ltd,1543.46, 15-Jun-2016
27,Revenue,CAHD,Home Care - Elderly - North,Other Small Contracts,3 Trees Community Support Ltd,700.74, 15-Jun-2016
28,Revenue,CAHD,Home Care - Elderly - North,Supported Living,3 Trees Community Support Ltd,9168.64, 15-Jun-2016
29,Revenue,CAHD,Home Care - Elderly - South,Day Care / Social Activities,3 Trees Community Support Ltd,91.60, 29-Jun-2016
30,Revenue,CAHD,Home Care - Elderly - North,Day Care / Social Activities,3 Trees Community Support Ltd,1662.54, 29-Jun-2016
31,Revenue,CAHD,Home Care - Elderly - North,Other Small Contracts,3 Trees Community Support Ltd,563.34, 29-Jun-2016
32,Revenue,CAHD,Home Care - Elderly - North,Supported Living,3 Trees Community Support Ltd,9349.76, 29-Jun-2016
33,Revenue,CAHD,Bed Purchasing - South,Permanent Residential,5Th Floor Harlech Court,16462.84, 07-Jun-2016
34,Revenue,CAHD,18-25 Year Olds,Permanent Residential,5Th Floor Harlech Court,14031.44, 07-Jun-2016
35,Revenue,CAHD,18-25 Year Olds,Permanent Residential,5Th Floor Harlech Court,14309.60, 07-Jun-2016
36,Revenue,CAHD,18-25 Year Olds,Permanent Residential,5Th Floor Harlech Court,12561.64, 07-Jun-2016
37,Revenue,CAHD,Bed Purchasing - North,Permanent Residential,5Th Floor Harlech Court,19583.65, 07-Jun-2016
38,Revenue,CAHD,Bed Purchasing - North,Permanent Residential,5Th Floor Harlech Court,15666.92, 07-Jun-2016
39,Revenue,CAHD,Bed Purchasing - North,Respite Planned - Residential,5Th Floor Harlech Court,5418.77, 07-Jun-2016
40,Revenue,CAHD,Bed Purchasing - North,Permanent Residential,5Th Floor Harlech Court,19367.24, 07-Jun-2016
41,Revenue,CAHD,Bed Purchasing - North,Permanent Residential,5Th Floor Harlech Court,13923.28, 07-Jun-2016
42,Revenue,CAHD,Jointly Funded H&SC Packages,Permanent Residential,5Th Floor Harlech Court,3078.96, 07-Jun-2016
43,Revenue,CAHD,18-25 Year Olds,Permanent Residential,5Th Floor Harlech Court,16146.32, 07-Jun-2016
44,Revenue,CAHD,Bed Purchasing - South,Permanent Residential,5Th Floor Harlech Court,9535.64, 07-Jun-2016
45,Revenue,CAHD,Bed purchasing - S28A Under 65 - South,Permanent Residential,5Th Floor Harlech Court,15067.26, 07-Jun-2016
46,Revenue,CAHD,Bed Purchasing - South,Permanent Residential,5Th Floor Harlech Court,10497.68, 07-Jun-2016
47,Revenue,CAHD,Woodleaze,Prop.Serv. General Repairs,A G Gribble Limited,3990.00, 23-Jun-2016
48,Revenue,CAHD,Bed Purchasing - North,Permanent Nursing,ABI Development Limited,7147.00, 07-Jun-2016
49,Revenue,CAHD,Home Care - Elderly - South,Day Care / Social Activities,About Me Care and Support Limited,1666.08, 13-Jun-2016
50,Revenue,CAHD,Home Care - Elderly - North,Day Care / Social Activities,About Me Care and Support Limited,534.00, 07-Jun-2016
51,Revenue,CAHD,Home Care - Elderly - South,Day Care / Social Activities,About Me Care and Support Limited,962.98, 20-Jun-2016
52,Revenue,CAHD,Home Care - Elderly - South,Day Care / Social Activities,About Me Care and Support Limited,780.17, 30-Jun-2016
53,Revenue,CAHD,Community Support - North,Preventative Assistance,Advanced Removals and Storage,600.00, 14-Jun-2016
54,Revenue,CAHD,Home Care - Elderly - South,Other Small Contracts,Agincare Chippenham,457.47, 06-Jun-2016
55,Revenue,CAHD,Home Care - Elderly - North,Other Small Contracts,Agincare Chippenham,516.12, 06-Jun-2016
56,Revenue,CAHD,Home Care - Elderly - South,Other Small Contracts,Agincare Chippenham,297.16, 06-Jun-2016
57,Revenue,CAHD,Home Care - Elderly - North,Other Small Contracts,Agincare Chippenham,551.31, 06-Jun-2016
58,Revenue,CAHD,Home Care - Elderly - South,Other Small Contracts,Agincare Chippenham,754.63, 29-Jun-2016
59,Revenue,CAHD,Home Care - Elderly - North,Other Small Contracts,Agincare Chippenham,516.12, 29-Jun-2016
60,Revenue,CAHD,Home Care - Elderly - South,Other Small Contracts,Agincare Chippenham,871.93, 30-Jun-2016
61,Revenue,CAHD,Home Care - Elderly - North,Other Small Contracts,Agincare Chippenham,480.93, 30-Jun-2016
62,Revenue,CAHD,Home Care - Elderly - South,Other Small Contracts,Agincare UK Limited,981.41, 06-Jun-2016
63,Revenue,CAHD,Home Care - Elderly - North,Other Small Contracts,Agincare UK Limited,637.33, 06-Jun-2016
64,Revenue,CAHD,Home Care - Elderly - South,Other Small Contracts,Agincare UK Limited,1012.69, 06-Jun-2016
65,Revenue,CAHD,Home Care - Elderly - North,Other Small Contracts,Agincare UK Limited,637.33, 06-Jun-2016
66,Revenue,CAHD,Home Care - Elderly - South,Other Small Contracts,Agincare UK Limited,707.71, 24-Jun-2016
67,Revenue,CAHD,Home Care - Elderly - North,Other Small Contracts,Agincare UK Limited,1051.79, 24-Jun-2016
68,Revenue,CAHD,Home Care - Elderly - South,Other Small Contracts,Agincare UK Limited,516.12, 24-Jun-2016
69,Revenue,CAHD,Home Care - Elderly - North,Other Small Contracts,Agincare UK Limited,559.13, 24-Jun-2016
70,Revenue,CAHD,Home Care - Elderly - South,Other Small Contracts,Agincare UK Limited,551.31, 29-Jun-2016
71,Revenue,CAHD,Home Care - Elderly - North,Other Small Contracts,Agincare UK Limited,1180.82, 29-Jun-2016
72,Revenue,CAHD,Home Care - Elderly - North,Other Small Contracts,Agincare UK Nutfield,1779.05, 24-Jun-2016
73,Revenue,CAHD,Home Care - Elderly - North,Other Small Contracts,Agincare UK Nutfield,1763.41, 24-Jun-2016
74,Revenue,CAHD,Home Care - Elderly - North,Other Small Contracts,Agincare UK Nutfield,1693.03, 24-Jun-2016
75,Revenue,CAHD,Home Care - Elderly - South,Day Care / Social Activities,Alexandra Homes (Bristol) Limited,1702.00, 30-Jun-2016
76,Revenue,CAHD,Home Care - Elderly - South,Day Care / Social Activities,Alexandra Homes (Bristol) Limited,1377.70, 30-Jun-2016
77,Revenue,CAHD,Home Care - Elderly - South,Day Care / Social Activities,Alexandra Homes (Bristol) Limited,1449.00, 30-Jun-2016
78,Revenue,CAHD,Home Care - Elderly - South,Other Small Contracts,AliMo Care Ltd,1242.32, 10-Jun-2016
79,Revenue,CAHD,Home Care - Elderly - South,Other Small Contracts,AliMo Care Ltd,1378.00, 10-Jun-2016
80,Revenue,CAHD,Home Care - Elderly - South,Other Small Contracts,AliMo Care Ltd,1369.52, 17-Jun-2016
81,Revenue,CAHD,Home Care - Elderly - South,Other Small Contracts,AliMo Care Ltd,1352.56, 22-Jun-2016
82,Revenue,CAHD,Bed Purchasing - South,Permanent Nursing,Ambleside Nusing Ho!,1544.24, 07-Jun-2016
83,Revenue,CAHD,Bed Purchasing - Southmead Hospital,Permanent Nursing,Amerind Grove Nursing Home,1950.64, 07-Jun-2016
84,Revenue,CAHD,Bed Purchasing - Southmead Hospital,Permanent Nursing,Amerind Grove Nursing Home,1711.28, 07-Jun-2016
85,Revenue,CAHD,Direct Payments - Phys Dis - North,Grants to Voluntary Bodies,Aquarium Card Management Solutions Ltd,2078.50, 02-Jun-2016
86,Revenue,CAHD,Bed Purchasing - North,Permanent Residential,Ark Care Homes Ltd,10494.48, 07-Jun-2016
87,Revenue,CAHD,S117 Placements PCT,Permanent Residential,Ash View House,7148.68, 07-Jun-2016
88,Revenue,CAHD,18-25 Year Olds,Permanent Residential,Ash View House,6315.92, 07-Jun-2016
89,Revenue,CAHD,Section 117 Placements MH Younger,Permanent Residential,Ash View House,4658.52, 07-Jun-2016
90,Revenue,CAHD,Jointly Funded H&SC Packages,Permanent Residential,Ash View House,1996.52, 07-Jun-2016
91,Revenue,CAHD,Bed purchasing - Elderly S117 - South,Permanent Residential,Ash View House,6331.72, 07-Jun-2016
92,Revenue,CAHD,Bed Purchasing - North,Permanent Residential,Aspects 2 Limited,6322.96, 07-Jun-2016
93,Revenue,CAHD,Supporting People Programme,Grants to Voluntary Bodies,Aspects and Milestones Trust,2014.33, 01-Jun-2016
94,Revenue,CAHD,Supporting People Programme,Grants to Voluntary Bodies,Aspects and Milestones Trust,1653.75, 01-Jun-2016
95,Revenue,CAHD,Supporting People Programme,Grants to Voluntary Bodies,Aspects and Milestones Trust,3298.58, 01-Jun-2016
96,Revenue,CAHD,Supporting People Programme,Grants to Voluntary Bodies,Aspects and Milestones Trust,2510.16, 01-Jun-2016
97,Revenue,CAHD,Bed Purchasing - South,Permanent Residential,Autism Specialised Care Homes,5755.24, 07-Jun-2016
98,Revenue,CAHD,Younger Adult Mental Health,Health Services (Third Party Payments),Avon & Wiltshire Mental Health,1667.00, 03-Jun-2016
99,Revenue,CAHD,Purchase of RAC places,Other L.A.'s - General,Bath & North East Somerset Dist Council,5282.92, 29-Jun-2016
100,Revenue,CAHD,Bed Purchasing - Southmead Hospital,Permanent Nursing,Bayview Nursing & Residential Home,1503.96, 07-Jun-2016
101,Revenue,CAHD,Pathway 3 - (Complex Beds),Permanent Nursing,Beaufort Care Ltd,5271.00, 27-Jun-2016
102,Revenue,CAHD,South Glos Users in South Glos Homes,Permanent Nursing,Beaufort Grange Care Home,832.00, 07-Jun-2016
103,Revenue,CAHD,South Glos Users in South Glos Homes,Permanent Nursing,Beaufort Grange Care Home,784.00, 07-Jun-2016
104,Revenue,CAHD,Bed Purchasing - Elderly S117- North,Permanent Nursing,Beaufort Grange Care Home,4411.20, 07-Jun-2016
105,Revenue,CAHD,South Glos Users in South Glos Homes,Permanent Nursing,Beaufort Grange Care Home,1424.00, 07-Jun-2016
106,Revenue,CAHD,South Glos Users in South Glos Homes,Permanent Nursing,Beaufort Grange Care Home,832.00, 07-Jun-2016
107,Revenue,CAHD,Bed Purchasing - Elderly S117- North,Permanent Nursing,Beaufort Grange Care Home,4613.92, 07-Jun-2016
108,Revenue,CAHD,South Glos Users in South Glos Homes,Permanent Nursing,Beaufort Grange Care Home,784.00, 07-Jun-2016
109,Revenue,CAHD,Bed Purchasing - North,Permanent Residential,Beaufort House,1705.40, 07-Jun-2016
110,Revenue,CAHD,Bed Purchasing - North,Permanent Residential,Beaufort House,2432.64, 07-Jun-2016
111,Revenue,CAHD,Bed Purchasing - North,Permanent Residential,Beaufort House,2458.92, 07-Jun-2016
112,Revenue,CAHD,Bed Purchasing - North,Permanent Residential,Beaufort House,1685.44, 07-Jun-2016
113,Revenue,CAHD,Bed Purchasing - North,Permanent Residential,Beaufort House,1369.02, 07-Jun-2016
114,Revenue,CAHD,Bed Purchasing - North,Permanent Residential,Beaufort House,912.68, 07-Jun-2016
115,Revenue,CAHD,Bed Purchasing - South,Permanent Residential,Beaufort House,2252.46, 07-Jun-2016
116,Revenue,CAHD,Bed Purchasing - South,Permanent Residential,Beaufort House,1501.64, 07-Jun-2016
117,Revenue,CAHD,Bed Purchasing - Southmead Hospital,Permanent Residential,Beaufort House,3482.11, 07-Jun-2016
118,Revenue,CAHD,Bed Purchasing - Southmead Hospital,Permanent Residential,Beaufort House,1302.12, 07-Jun-2016
119,Revenue,CAHD,Bed Purchasing - North,Permanent Residential,Beaufort House,1846.64, 07-Jun-2016
120,Revenue,CAHD,Bed Purchasing - Southmead Hospital,Permanent Residential,Beaufort House,1288.96, 07-Jun-2016
121,Revenue,CAHD,Bed Purchasing - North,Permanent Residential,Beaufort House,1483.64, 07-Jun-2016
122,Revenue,CAHD,Bed Purchasing - North,Respite Emergency - Residential,Beaufort House,2432.64, 07-Jun-2016
123,Revenue,CAHD,Bed Purchasing - Southmead Hospital,Permanent Residential,Beaufort House,1857.20, 07-Jun-2016
124,Revenue,CAHD,Bed Purchasing - South,Permanent Residential,Bedrock Lodge,4733.70, 07-Jun-2016
125,Revenue,CAHD,Bed Purchasing - South,Permanent Residential,Bedrock Lodge,3155.80, 07-Jun-2016
126,Revenue,CAHD,Bed Purchasing - South,Permanent Residential,Bedrock Lodge,4515.48, 07-Jun-2016
127,Revenue,CAHD,Bed Purchasing - South,Permanent Residential,Bedrock Lodge,2902.95, 07-Jun-2016
128,Revenue,CAHD,Section 117 Placements MH Younger,Permanent Residential,Bedrock Lodge,1910.68, 07-Jun-2016
129,Revenue,CAHD,Bed Purchasing - South,Permanent Residential,Beech House,2001.20, 07-Jun-2016
130,Revenue,CAHD,Bed Purchasing - South,Permanent Residential,Beech House,568.85, 07-Jun-2016
131,Revenue,CAHD,Bed Purchasing - North,Permanent Nursing,Beech House,2172.00, 07-Jun-2016
132,Revenue,CAHD,Bed Purchasing - North,Permanent Residential,Beech House,2001.20, 07-Jun-2016
133,Revenue,CAHD,Bed Purchasing - North,Permanent Residential,Beech House,1457.67, 07-Jun-2016
134,Revenue,CAHD,Bed Purchasing - North,Permanent Nursing,Beech House,1094.80, 07-Jun-2016
135,Revenue,CAHD,Bed Purchasing - North,Permanent Residential,Beech House,1432.32, 07-Jun-2016
136,Revenue,CAHD,Home Care - Elderly - South,Other Small Contracts,Bibby Factors Bristol Limited,42.60, 02-Jun-2016
137,Revenue,CAHD,Home Care - Elderly - North,Other Small Contracts,Bibby Factors Bristol Limited,9286.80, 02-Jun-2016
138,Revenue,CAHD,Home Care - Elderly - North,Other Small Contracts,Bibby Factors Bristol Limited,9448.68, 06-Jun-2016
139,Revenue,CAHD,Home Care - Elderly - North,Other Small Contracts,Bibby Factors Bristol Limited,9056.76, 08-Jun-2016
140,Revenue,CAHD,Home Care - Elderly - North,Day Care / Social Activities,Bibby Factors Bristol Limited,136.32, 17-Jun-2016
141,Revenue,CAHD,Home Care - Elderly - North,Other Small Contracts,Bibby Factors Bristol Limited,10149.66, 17-Jun-2016
142,Revenue,CAHD,Home Care - Elderly - South,Other Small Contracts,Bibby Factors Bristol Limited,51.12, 24-Jun-2016
143,Revenue,CAHD,Home Care - Elderly - North,Day Care / Social Activities,Bibby Factors Bristol Limited,140.58, 24-Jun-2016
144,Revenue,CAHD,Home Care - Elderly - North,Other Small Contracts,Bibby Factors Bristol Limited,10345.04, 24-Jun-2016
145,Revenue,CAHD,Bed Purchasing - North,Permanent Nursing,Blossom Field,2402.12, 07-Jun-2016
146,Revenue,CAHD,Bed Purchasing - Elderly S117- North,Permanent Nursing,Blossom Field,2040.00, 07-Jun-2016
147,Revenue,CAHD,Bed Purchasing - Southmead Hospital,Permanent Nursing,Blossom Field,8126.08, 07-Jun-2016
148,Revenue,CAHD,South Glos Users in South Glos Homes,Permanent Nursing,Blossom Field,832.00, 07-Jun-2016
149,Revenue,CAHD,South Glos Users in South Glos Homes,Permanent Nursing,Blossom Field,688.00, 07-Jun-2016
150,Revenue,CAHD,Swift Dump Code,Permanent Residential,Blossom Field,12531.06, 07-Jun-2016
151,Revenue,CAHD,Bed Purchasing - North,Permanent Nursing,Blossom Field,11287.44, 07-Jun-2016
152,Revenue,CAHD,Bed Purchasing - North,Permanent Nursing,Blossom Field,2447.92, 07-Jun-2016
153,Revenue,CAHD,Bed Purchasing - North,Permanent Nursing,Blossom Field,47725.72, 07-Jun-2016
154,Revenue,CAHD,South Glos Users in South Glos Homes,Permanent Nursing,Blossom Field,944.00, 07-Jun-2016
155,Revenue,CAHD,South Glos Users in South Glos Homes,Permanent Nursing,Blossom Field,832.00, 07-Jun-2016
156,Revenue,CAHD,Bed purchasing - Elderly S117 - South,Permanent Nursing,Blossom Field,4459.84, 07-Jun-2016
157,Revenue,CAHD,Bed purchasing - Elderly S117 - South,Permanent Nursing,Blossom Field,4411.20, 07-Jun-2016
158,Revenue,CAHD,South Glos Users in South Glos Homes,Permanent Nursing,Blossom Field,560.00, 07-Jun-2016
159,Revenue,CAHD,South Glos Users in South Glos Homes,Permanent Nursing,Blossom Field,1136.00, 07-Jun-2016
160,Revenue,CAHD,South Glos Users in South Glos Homes,Permanent Nursing,Blossom Field,832.00, 07-Jun-2016
161,Revenue,CAHD,South Glos Users in South Glos Homes,Permanent Nursing,Blossom Field,832.00, 07-Jun-2016
162,Revenue,CAHD,South Glos Users in South Glos Homes,Permanent Nursing,Blossom Field,832.00, 07-Jun-2016
163,Revenue,CAHD,Bed Purchasing - North,Permanent Nursing,Blossom Field,2835.56, 07-Jun-2016
164,Revenue,CAHD,Bed Purchasing - North,Permanent Nursing,Blossom Field,4209.78, 07-Jun-2016
165,Revenue,CAHD,Bed Purchasing - North,Permanent Nursing,Blossom Field,2806.52, 07-Jun-2016
166,Revenue,CAHD,Bed Purchasing - North,Permanent Nursing,Blossom Fields,1860.16, 16-Jun-2016
167,Revenue,CAHD,Bed Purchasing - Southmead Hospital,Permanent Nursing,Blossom Fields,2129.20, 16-Jun-2016
168,Revenue,CAHD,Bed Purchasing - North,Permanent Nursing,Blossom Fields,2652.00, 16-Jun-2016
169,Revenue,CAHD,Home Care - Elderly - South,Other Small Contracts,Bluebird Care (South Gloucestershire),778.10, 02-Jun-2016
170,Revenue,CAHD,Home Care - Elderly - North,Other Small Contracts,Bluebird Care (South Gloucestershire),2360.24, 02-Jun-2016
171,Revenue,CAHD,Home Care - Elderly - South,Other Small Contracts,Bluebird Care (South Gloucestershire),763.04, 02-Jun-2016
172,Revenue,CAHD,Home Care - Elderly - North,Other Small Contracts,Bluebird Care (South Gloucestershire),2169.31, 02-Jun-2016
173,Revenue,CAHD,Home Care - Elderly - South,Other Small Contracts,Bluebird Care (South Gloucestershire),783.12, 02-Jun-2016
174,Revenue,CAHD,Home Care - Elderly - North,Other Small Contracts,Bluebird Care (South Gloucestershire),2129.32, 02-Jun-2016
175,Revenue,CAHD,Home Care - Elderly - South,Other Small Contracts,Bluebird Care (South Gloucestershire),677.70, 30-Jun-2016
176,Revenue,CAHD,Home Care - Elderly - North,Other Small Contracts,Bluebird Care (South Gloucestershire),2757.32, 30-Jun-2016
177,Revenue,CAHD,Home Care - Elderly - South,Other Small Contracts,Bluebird Care (South Gloucestershire),753.00, 30-Jun-2016
178,Revenue,CAHD,Home Care - Elderly - North,Other Small Contracts,Bluebird Care (South Gloucestershire),3262.05, 30-Jun-2016
179,Revenue,CAHD,Training - Adult Services,Training Expenses,Bob Dawson,1625.00, 13-Jun-2016
180,Revenue,CAHD,Training - Adult Services,Training Expenses,Bournemouth University,575.00, 10-Jun-2016
181,Revenue,CAHD,Bed purchasing - S28A Under 65 - South,Permanent Residential,Bradbury House,4355.60, 07-Jun-2016
182,Revenue,CAHD,Bed Purchasing - South,Permanent Residential,Bradbury House,7945.92, 07-Jun-2016
183,Revenue,CAHD,Bed purchasing - S28A Under 65 - South,Permanent Residential,Bradbury House,6534.72, 07-Jun-2016
184,Revenue,CAHD,18-25 Year Olds,Permanent Residential,Bradbury House,8981.52, 07-Jun-2016
185,Revenue,CAHD,Bed purchasing - Elderly S117 - South,Permanent Residential,Bradbury House,8462.56, 07-Jun-2016
186,Revenue,CAHD,Jointly Funded H&SC Packages,Permanent Residential,Bradbury House,3144.08, 07-Jun-2016
187,Revenue,CAHD,Bed Purchasing - North,Permanent Residential,Bradley House,1556.64, 07-Jun-2016
188,Revenue,CAHD,Bed Purchasing - South,Permanent Nursing,Brandon Trust,30367.37, 07-Jun-2016
189,Revenue,CAHD,Bed Purchasing - South,Permanent Nursing,Brandon Trust,5239.96, 07-Jun-2016
190,Revenue,CAHD,Bed Purchasing - North,Respite Emergency - Residential,Brandon Trust,1148.00, 07-Jun-2016
191,Revenue,CAHD,Bed Purchasing - South,Permanent Residential,Brandon Trust,10525.96, 07-Jun-2016
192,Revenue,CAHD,Bed Purchasing - South,Permanent Residential,Brandon Trust,4140.64, 07-Jun-2016
193,Revenue,CAHD,Bed Purchasing - Southmead Hospital,Permanent Nursing,Brandon Trust,4663.04, 07-Jun-2016
194,Revenue,CAHD,South Glos Users in South Glos Homes,Permanent Nursing,Brandon Trust,3600.00, 07-Jun-2016
195,Revenue,CAHD,Bed Purchasing - South,Permanent Nursing,Brandon Trust,5166.12, 07-Jun-2016
196,Revenue,CAHD,Bed purchasing - S28A Under 65 - South,Permanent Nursing,Brandon Trust,5574.32, 07-Jun-2016
197,Revenue,CAHD,Bed purchasing - S28A Under 65 - South,Permanent Residential,Brandon Trust,4431.16, 07-Jun-2016
198,Revenue,CAHD,Bed Purchasing - LD S28A- Over 65- South,Permanent Nursing,Brandon Trust,5251.12, 07-Jun-2016
199,Revenue,CAHD,Bed Purchasing - LD S28A- Over 65- South,Permanent Nursing,Brandon Trust,4964.92, 07-Jun-2016
200,Revenue,CAHD,Bed Purchasing - South,Permanent Residential,Brandon Trust,12884.78, 07-Jun-2016
201,Revenue,CAHD,Bed purchasing - S28A Under 65 - South,Permanent Residential,Brandon Trust,5335.92, 07-Jun-2016
202,Revenue,CAHD,Bed purchasing - S28A Under 65 - South,Permanent Residential,Brandon Trust,5392.96, 07-Jun-2016
203,Revenue,CAHD,Bed purchasing - S28A Under 65 - South,Permanent Nursing,Brandon Trust,5496.12, 07-Jun-2016
204,Revenue,CAHD,Bed purchasing -S28A  Under 65 - North,Permanent Nursing,Brandon Trust,4968.24, 07-Jun-2016
205,Revenue,CAHD,Bed purchasing - S28A Under 65 - South,Permanent Residential,Brandon Trust,5392.96, 07-Jun-2016
206,Revenue,CAHD,Bed Purchasing - LD S28A- Over 65- South,Permanent Residential,Brandon Trust,4849.92, 07-Jun-2016
207,Revenue,CAHD,Social Lettings Agency,Fees - General,Individual,11.41, 17-Jun-2016
208,Revenue,CAHD,Social Lettings Agency,Other Supplies & Services,Individual,746.54, 17-Jun-2016
209,Revenue,CAHD,Bed Purchasing - North,Permanent Residential,Bridge House Care Home,7229.28, 07-Jun-2016
210,Revenue,CAHD,Bed Purchasing - North,Permanent Residential,Bridge House Care Home,1554.80, 07-Jun-2016
211,Revenue,CAHD,Bed Purchasing - North,Permanent Residential,Bridge House Care Home,1351.92, 07-Jun-2016
212,Revenue,CAHD,Bed Purchasing - North,Permanent Residential,Bridge House Care Home,1089.80, 07-Jun-2016
213,Revenue,CAHD,Bed Purchasing - North,Permanent Residential,Bridge House Care Home,1549.96, 07-Jun-2016
214,Revenue,CAHD,Bed Purchasing - North,Permanent Residential,Bridge House Care Home,1550.80, 07-Jun-2016
215,Revenue,CAHD,Bed Purchasing - North,Permanent Residential,Bridgwater Court,10192.44, 07-Jun-2016
216,Revenue,CAHD,Bed Purchasing - South,Permanent Residential,Brightbow,2131.88, 07-Jun-2016
217,Revenue,CAHD,MH Purchasing - Younger,Permanent Residential,Brightbow,1519.76, 07-Jun-2016
218,Revenue,CAHD,Home Care - Elderly - North,Day Care / Social Activities,Bristol Houses UK Limited,613.04, 30-Jun-2016
219,Revenue,CAHD,Home Care - Elderly - North,Day Care / Social Activities,Bristol Houses UK Limited,620.80, 27-Jun-2016
220,Revenue,CAHD,Home Care - Elderly - South,Day Care / Social Activities,Bristol Houses UK Limited,1179.52, 27-Jun-2016
221,Revenue,CAHD,Training - Adult Services,Training Expenses,Bristol MIND,1425.00, 10-Jun-2016
222,Revenue,CAHD,Supporting People Programme,Grants to Voluntary Bodies,Bristol Missing Link,2039.66, 01-Jun-2016
223,Revenue,CAHD,Supporting People Programme,Grants to Voluntary Bodies,Bristol Missing Link,1484.66, 01-Jun-2016
224,Revenue,CAHD,Woodleaze,Water Charges,Bristol Wessex Billing Services Limited,2484.88, 22-Jun-2016
225,Revenue,CAHD,Home Care - Elderly - North,SU Employment Support,Britannia House,702.96, 07-Jun-2016
226,Revenue,CAHD,Home Care - Elderly - North,Day Care / Social Activities,Britannia House,937.28, 07-Jun-2016
227,Revenue,CAHD,Home Care - Elderly - North,Day Care / Social Activities,Britannia House,702.96, 07-Jun-2016
228,Revenue,CAHD,Home Care - Elderly - North,Day Care / Social Activities,Britannia House,702.96, 07-Jun-2016
229,Revenue,CAHD,Home Care - Elderly - North,Day Care / Social Activities,Britannia House,937.28, 07-Jun-2016
230,Revenue,CAHD,Home Care - Elderly - South,Day Care / Social Activities,Britannia House,1171.60, 07-Jun-2016
231,Revenue,CAHD,Home Care - Elderly - South,Day Care / Social Activities,Britannia House,702.96, 07-Jun-2016
232,Revenue,CAHD,Home Care - Elderly - South,Day Care / Social Activities,Britannia House,702.96, 07-Jun-2016
233,Revenue,CAHD,Home Care - Elderly - South,Day Care / Social Activities,Britannia House,702.96, 07-Jun-2016
234,Revenue,CAHD,Supporting People Programme,Grants to Voluntary Bodies,Bromford Housing Group,14395.08, 01-Jun-2016
235,Revenue,CAHD,Home Care - Elderly - North,Private & Voluntary Home Care,Brunelcare,23822.65, 06-Jun-2016
236,Revenue,CAHD,Home Care - Elderly - North,Private & Voluntary Home Care,Brunelcare,23822.65, 13-Jun-2016
237,Revenue,CAHD,Home Care - Elderly - North,Private & Voluntary Home Care,Brunelcare,23822.65, 20-Jun-2016
238,Revenue,CAHD,Home Care - Elderly - North,Private & Voluntary Home Care,Brunelcare,23822.65, 27-Jun-2016
239,Revenue,CAHD,Bed Purchasing - Southmead Hospital,Permanent Nursing,Brunelcare,2282.09, 20-Jun-2016
240,Revenue,CAHD,Bed Purchasing - South,Permanent Nursing,Brunelcare,2563.74, 20-Jun-2016
241,Revenue,CAHD,Bed Purchasing - Elderly S117- North,Permanent Nursing,Brunelcare,3179.71, 20-Jun-2016
242,Revenue,CAHD,Bed Purchasing - South,Permanent Nursing,Brunelcare,2353.56, 20-Jun-2016
243,Revenue,CAHD,Bed Purchasing - Southmead Hospital,Permanent Nursing,Brunelcare,2540.36, 20-Jun-2016
244,Revenue,CAHD,Bed Purchasing - Southmead Hospital,Permanent Nursing,Brunelcare,1444.07, 20-Jun-2016
245,Revenue,CAHD,Bed Purchasing - South,Permanent Nursing,Brunelcare,2600.90, 20-Jun-2016
246,Revenue,CAHD,Bed Purchasing - South,Permanent Nursing,Brunelcare,2409.41, 20-Jun-2016
247,Revenue,CAHD,Bed purchasing - Elderly S117 - South,Permanent Nursing,Brunelcare,3179.71, 20-Jun-2016
248,Revenue,CAHD,Bed Purchasing - North,Permanent Nursing,Brunelcare,2529.78, 20-Jun-2016
249,Revenue,CAHD,Bed Purchasing - Southmead Hospital,Permanent Nursing,Brunelcare,2430.09, 20-Jun-2016
250,Revenue,CAHD,Bed Purchasing - North,Permanent Nursing,Brunelcare,2552.72, 20-Jun-2016
251,Revenue,CAHD,Bed Purchasing - North,Permanent Nursing,Brunelcare,2600.90, 20-Jun-2016
252,Revenue,CAHD,Bed Purchasing - Southmead Hospital,Permanent Nursing,Brunelcare,2600.90, 20-Jun-2016
253,Revenue,CAHD,Bed Purchasing - Southmead Hospital,Permanent Nursing,Brunelcare,2511.35, 20-Jun-2016
254,Revenue,CAHD,Bed Purchasing - Elderly S117- North,Permanent Nursing,Brunelcare,3179.71, 20-Jun-2016
255,Revenue,CAHD,Bed Purchasing - South,Respite Planned - Nursing,Brunelcare,1025.71, 20-Jun-2016
256,Revenue,CAHD,Bed Purchasing - North,Respite Planned - Nursing,Brunelcare,820.57, 20-Jun-2016
257,Revenue,CAHD,Bed Purchasing - South,Respite Planned - Nursing,Brunelcare,512.86, 20-Jun-2016
258,Revenue,CAHD,Bed Purchasing - North,Respite Planned - Nursing,Brunelcare,820.57, 20-Jun-2016
259,Revenue,CAHD,Pathway 2 - (Interim Beds),Permanent Nursing,Brunelcare,15407.00, 23-Jun-2016
260,Revenue,CAHD,Home Care - Elderly - South,Other Small Contracts,Brunelcare,2080.79, 06-Jun-2016
261,Revenue,CAHD,Home Care - Elderly - North,Other Small Contracts,Brunelcare,1755.61, 06-Jun-2016
262,Revenue,CAHD,Home Care - Elderly - South,Other Small Contracts,Brunelcare,1939.97, 06-Jun-2016
263,Revenue,CAHD,Home Care - Elderly - North,Other Small Contracts,Brunelcare,1646.67, 06-Jun-2016
264,Revenue,CAHD,Home Care - Elderly - South,Other Small Contracts,Brunelcare,1948.35, 06-Jun-2016
265,Revenue,CAHD,Home Care - Elderly - North,Other Small Contracts,Brunelcare,1738.85, 06-Jun-2016
266,Revenue,CAHD,Bed Purchasing - North,Permanent Nursing,Bupa Care Services  Bridge House,1740.00, 07-Jun-2016
267,Revenue,CAHD,Jointly Funded H&SC Packages,Permanent Nursing,Bupa Care Services  Bridge House,4344.04, 07-Jun-2016
268,Revenue,CAHD,South Glos Users in all other LA Homes,Permanent Nursing,Bupa Care Services  Bridge House,616.56, 07-Jun-2016
269,Revenue,CAHD,Home Care - Elderly - North,Day Care / Social Activities,Camphill Communities Thornbury Limited,836.00, 03-Jun-2016
270,Revenue,CAHD,Home Care - Elderly - North,Other Small Contracts,Camphill Communities Thornbury Limited,144.00, 03-Jun-2016
271,Revenue,CAHD,Home Care - Elderly - North,Supported Living,Camphill Communities Thornbury Limited,1360.00, 03-Jun-2016
272,Revenue,CAHD,Home Care - Elderly - North,Day Care / Social Activities,Camphill Communities Thornbury Limited,1084.00, 09-Jun-2016
273,Revenue,CAHD,Home Care - Elderly - North,Other Small Contracts,Camphill Communities Thornbury Limited,148.00, 09-Jun-2016
274,Revenue,CAHD,Home Care - Elderly - North,Supported Living,Camphill Communities Thornbury Limited,1272.00, 09-Jun-2016
275,Revenue,CAHD,Home Care - Elderly - North,Day Care / Social Activities,Camphill Communities Thornbury Limited,1128.00, 16-Jun-2016
276,Revenue,CAHD,Home Care - Elderly - North,Other Small Contracts,Camphill Communities Thornbury Limited,144.00, 16-Jun-2016
277,Revenue,CAHD,Home Care - Elderly - North,Supported Living,Camphill Communities Thornbury Limited,1256.00, 16-Jun-2016
278,Revenue,CAHD,Home Care - Elderly - North,Day Care / Social Activities,Camphill Communities Thornbury Limited,1116.00, 22-Jun-2016
279,Revenue,CAHD,Home Care - Elderly - North,Other Small Contracts,Camphill Communities Thornbury Limited,144.00, 22-Jun-2016
280,Revenue,CAHD,Home Care - Elderly - North,Supported Living,Camphill Communities Thornbury Limited,1408.00, 22-Jun-2016
281,Revenue,CAHD,Home Care - Elderly - North,Day Care / Social Activities,Camphill Communities Thornbury Limited,1064.00, 30-Jun-2016
282,Revenue,CAHD,Home Care - Elderly - North,Other Small Contracts,Camphill Communities Thornbury Limited,144.00, 30-Jun-2016
283,Revenue,CAHD,Home Care - Elderly - North,Supported Living,Camphill Communities Thornbury Limited,1396.00, 30-Jun-2016
284,Revenue,CAHD,Bed Purchasing - Elderly S117- North,Permanent Residential,Canjayor,2391.32, 07-Jun-2016
285,Revenue,CAHD,Mental Capacity Act - Advocacy,Legal Fees,Capacity Matters Ltd,746.55, 08-Jun-2016
286,Revenue,CAHD,Information Systems - Software,Fees - General,Capita Business Services Ltd,420.00, 02-Jun-2016
287,Revenue,CAHD,Home Care - Elderly - South,Other Small Contracts,Care 1st Homecare,4730.25, 06-Jun-2016
288,Revenue,CAHD,Home Care - Elderly - South,Supported Living,Care 1st Homecare,25.50, 06-Jun-2016
289,Revenue,CAHD,Home Care - Elderly - North,One-off Planned Direct Payment,Care 1st Homecare,34.00, 06-Jun-2016
290,Revenue,CAHD,Home Care - Elderly - North,Other Small Contracts,Care 1st Homecare,3523.25, 06-Jun-2016
291,Revenue,CAHD,Home Care - Elderly - South,Other Small Contracts,Care 1st Homecare,4016.92, 02-Jun-2016
292,Revenue,CAHD,Home Care - Elderly - North,Other Small Contracts,Care 1st Homecare,3641.33, 02-Jun-2016
293,Revenue,CAHD,Home Care - Elderly - South,Other Small Contracts,Care 1st Homecare,3935.03, 06-Jun-2016
294,Revenue,CAHD,Home Care - Elderly - North,Other Small Contracts,Care 1st Homecare,4075.23, 06-Jun-2016
295,Revenue,CAHD,Home Care - Elderly - South,Day Care / Social Activities,Care Futures,1965.30, 10-Jun-2016
296,Revenue,CAHD,Home Care - Elderly - South,Other Small Contracts,Care Horizons Limited,369.36, 02-Jun-2016
297,Revenue,CAHD,Home Care - Elderly - North,Day Care / Social Activities,Care Horizons Limited,168.72, 02-Jun-2016
298,Revenue,CAHD,Home Care - Elderly - North,Other Small Contracts,Care Horizons Limited,342.00, 02-Jun-2016
299,Revenue,CAHD,Home Care - Elderly - South,Other Small Contracts,Care Horizons Limited,360.24, 06-Jun-2016
300,Revenue,CAHD,Home Care - Elderly - North,Day Care / Social Activities,Care Horizons Limited,168.72, 06-Jun-2016
301,Revenue,CAHD,Home Care - Elderly - North,Other Small Contracts,Care Horizons Limited,360.24, 06-Jun-2016
302,Revenue,CAHD,Home Care - Elderly - South,Other Small Contracts,Care Horizons Limited,351.12, 14-Jun-2016
303,Revenue,CAHD,Home Care - Elderly - North,Day Care / Social Activities,Care Horizons Limited,164.16, 14-Jun-2016
304,Revenue,CAHD,Home Care - Elderly - North,Other Small Contracts,Care Horizons Limited,360.24, 14-Jun-2016
305,Revenue,CAHD,Home Care - Elderly - South,Other Small Contracts,Care Horizons Limited,351.12, 14-Jun-2016
306,Revenue,CAHD,Home Care - Elderly - North,Day Care / Social Activities,Care Horizons Limited,159.60, 14-Jun-2016
307,Revenue,CAHD,Home Care - Elderly - North,Other Small Contracts,Care Horizons Limited,355.68, 14-Jun-2016
308,Revenue,CAHD,Home Care - Elderly - North,Supported Living,Care Horizons Limited,5089.76, 01-Jun-2016
309,Revenue,CAHD,Home Care - Elderly - North,Supported Living,Care Horizons Limited,6188.59, 01-Jun-2016
310,Revenue,CAHD,Home Care Monitoring (CM2000),Other Supplies & Services,Care Monitoring 2000 Limited,9522.24, 09-Jun-2016
311,Revenue,CAHD,Home Care - Elderly - South,Other Small Contracts,Carers R Us (Bristol) Limited,684.70, 06-Jun-2016
312,Revenue,CAHD,Home Care - Elderly - South,Other Small Contracts,Carers R Us (Bristol) Limited,660.10, 06-Jun-2016
313,Revenue,CAHD,Home Care - Elderly - South,Other Small Contracts,Carers R Us (Bristol) Limited,684.70, 21-Jun-2016
314,Revenue,CAHD,Home Care - Elderly - South,Other Small Contracts,Carers R Us (Bristol) Limited,705.20, 21-Jun-2016
315,Revenue,CAHD,Home Care - Elderly - South,Other Small Contracts,Carers R Us (Bristol) Limited,684.70, 21-Jun-2016
316,Revenue,CAHD,Home Care - Elderly - North,Other Small Contracts,Caring Comes 1st Ltd,1242.00, 16-Jun-2016
317,Revenue,CAHD,Home Care - Elderly - North,Other Small Contracts,Caring Comes 1st Ltd,1063.80, 16-Jun-2016
318,Revenue,CAHD,Social Lettings Agency,Fees - General,Individual,10.53, 01-Jun-2016
319,Revenue,CAHD,Social Lettings Agency,Fees & Charges Income - General,Individual,595.11, 01-Jun-2016
320,Revenue,CAHD,Bed Purchasing - South,Permanent Nursing,Cedar Care Homes Ltd,12880.33, 07-Jun-2016
321,Revenue,CAHD,Community Support - South,Preventative Assistance,Cedar Lodge Kennels,515.24, 03-Jun-2016
322,Revenue,CAHD,Bed Purchasing - North,Permanent Residential,Charlton House,916.12, 07-Jun-2016
323,Revenue,CAHD,Bed Purchasing - North,Permanent Residential,Charlton House,924.16, 07-Jun-2016
324,Revenue,CAHD,Home Care - Elderly - South,Other Small Contracts,Cherish Able Care Limited,4729.40, 03-Jun-2016
325,Revenue,CAHD,Home Care - Elderly - North,Other Small Contracts,Cherish Able Care Limited,171.20, 03-Jun-2016
326,Revenue,CAHD,Home Care - Elderly - South,Other Small Contracts,Cherish Able Care Limited,4416.96, 10-Jun-2016
327,Revenue,CAHD,Home Care - Elderly - North,Other Small Contracts,Cherish Able Care Limited,179.76, 10-Jun-2016
328,Revenue,CAHD,Home Care - Elderly - South,Other Small Contracts,Cherish Able Care Limited,4545.36, 17-Jun-2016
329,Revenue,CAHD,Home Care - Elderly - North,Other Small Contracts,Cherish Able Care Limited,184.04, 17-Jun-2016
330,Revenue,CAHD,Home Care - Elderly - South,Other Small Contracts,Cherish Able Care Limited,4934.84, 24-Jun-2016
331,Revenue,CAHD,Home Care - Elderly - North,Other Small Contracts,Cherish Able Care Limited,179.76, 24-Jun-2016
332,Revenue,CAHD,Bed purchasing -S28A  Under 65 - North,Permanent Residential,Chescombe Lodge,8915.92, 07-Jun-2016
333,Revenue,CAHD,Bed Purchasing - Southmead Hospital,Permanent Nursing,Cholwell House Nursing Home Ltd,2005.92, 07-Jun-2016
334,Revenue,CAHD,Bed Purchasing - Southmead Hospital,Permanent Nursing,Churchill Property Services,1710.24, 07-Jun-2016
335,Revenue,CAHD,18-25 Year Olds,Permanent Residential,Citibase Watford,7190.44, 07-Jun-2016
336,Revenue,CAHD,Bed Purchasing - Elderly S117- North,Permanent Residential,Citibase Watford,6700.10, 07-Jun-2016
337,Revenue,CAHD,Jointly Funded H&SC Packages,Permanent Residential,Citibase Watford,6700.16, 07-Jun-2016
338,Revenue,CAHD,Bed Purchasing - Elderly S117- North,Permanent Residential,Citibase Watford,4575.68, 07-Jun-2016
339,Revenue,CAHD,Jointly Funded H&SC Packages,Permanent Residential,Citibase Watford,4575.72, 07-Jun-2016
340,Revenue,CAHD,18-25 Year Olds,Permanent Residential,Citibase Watford,5594.88, 07-Jun-2016
341,Revenue,CAHD,Home Care - Elderly - South,Other Small Contracts,Cleeve Care Group,538.50, 02-Jun-2016
342,Revenue,CAHD,Bed Purchasing - South,Permanent Residential,Cleeve Lodge,567.56, 07-Jun-2016
343,Revenue,CAHD,Bed Purchasing - Southmead Hospital,Permanent Residential,Cleeve Lodge,1494.76, 07-Jun-2016
344,Revenue,CAHD,Bed Purchasing - South,Permanent Residential,Cleeve Lodge,1769.56, 07-Jun-2016
345,Revenue,CAHD,Bed Purchasing - South,Permanent Residential,Cleeve Lodge,1855.40, 07-Jun-2016
346,Revenue,CAHD,Bed Purchasing - South,Permanent Residential,Cleeve Lodge,1852.60, 07-Jun-2016
347,Revenue,CAHD,Tenancy Start Up Scheme,Other Supplies & Services,Individual,1950.00, 10-Jun-2016
348,Revenue,CAHD,Bed Purchasing - South,Permanent Residential,Collingwood Residential Home,1467.24, 07-Jun-2016
349,Revenue,CAHD,Bed Purchasing - Southmead Hospital,Permanent Residential,Collingwood Residential Home,1424.48, 07-Jun-2016
350,Revenue,CAHD,Bed Purchasing - Southmead Hospital,Permanent Residential,Collingwood Residential Home,864.86, 07-Jun-2016
351,Revenue,CAHD,Bed Purchasing - South,Permanent Residential,Collingwood Residential Home,1484.12, 07-Jun-2016
352,Revenue,CAHD,Bed Purchasing - South,Permanent Residential,Collingwood Residential Home,1461.76, 07-Jun-2016
353,Revenue,CAHD,Bed Purchasing - South,Permanent Residential,Collingwood Residential Home,1340.68, 07-Jun-2016
354,Revenue,CAHD,Bed Purchasing - South,Permanent Nursing,Community Integrated Care,676.64, 07-Jun-2016
355,Revenue,CAHD,Bed and Breakfast,Bed & Breakfast,Connolly & Callaghan Limited,476.00, 22-Jun-2016
356,Revenue,CAHD,Bed and Breakfast,Bed & Breakfast,Connolly & Callaghan Limited,511.00, 01-Jun-2016
357,Revenue,CAHD,Bed and Breakfast,Bed & Breakfast,Connolly & Callaghan Limited,441.00, 01-Jun-2016
358,Revenue,CAHD,Bed and Breakfast,Bed & Breakfast,Connolly & Callaghan Limited,438.00, 15-Jun-2016
359,Revenue,CAHD,Bed and Breakfast,Bed & Breakfast,Connolly & Callaghan Limited,455.00, 01-Jun-2016
360,Revenue,CAHD,Bed and Breakfast,Bed & Breakfast,Connolly & Callaghan Limited,616.00, 01-Jun-2016
361,Revenue,CAHD,Bed and Breakfast,Bed & Breakfast,Connolly & Callaghan Limited,616.00, 01-Jun-2016
362,Revenue,CAHD,Bed and Breakfast,Bed & Breakfast,Connolly & Callaghan Limited,511.00, 17-Jun-2016
363,Revenue,CAHD,Bed and Breakfast,Bed & Breakfast,Connolly & Callaghan Limited,441.00, 16-Jun-2016
364,Revenue,CAHD,Bed and Breakfast,Bed & Breakfast,Connolly & Callaghan Limited,441.00, 17-Jun-2016
365,Revenue,CAHD,Bed and Breakfast,Bed & Breakfast,Connolly & Callaghan Limited,511.00, 17-Jun-2016
366,Revenue,CAHD,Bed and Breakfast,Bed & Breakfast,Connolly & Callaghan Limited,476.00, 17-Jun-2016
367,Revenue,CAHD,Bed and Breakfast,Bed & Breakfast,Connolly & Callaghan Limited,455.00, 17-Jun-2016
368,Revenue,CAHD,Bed and Breakfast,Bed & Breakfast,Connolly & Callaghan Limited,441.00, 16-Jun-2016
369,Revenue,CAHD,Bed and Breakfast,Bed & Breakfast,Connolly & Callaghan Limited,476.00, 16-Jun-2016
370,Revenue,CAHD,Bed and Breakfast,Bed & Breakfast,Connolly & Callaghan Limited,651.00, 16-Jun-2016
371,Revenue,CAHD,Bed and Breakfast,Bed & Breakfast,Connolly & Callaghan Limited,546.00, 16-Jun-2016
372,Revenue,CAHD,Bed and Breakfast,Bed & Breakfast,Connolly & Callaghan Limited,616.00, 17-Jun-2016
373,Revenue,CAHD,Bed and Breakfast,Bed & Breakfast,Connolly & Callaghan Limited,616.00, 17-Jun-2016
374,Revenue,CAHD,Bed and Breakfast,Bed & Breakfast,Connolly & Callaghan Limited,511.00, 16-Jun-2016
375,Revenue,CAHD,Bed and Breakfast,Bed & Breakfast,Connolly & Callaghan Limited,441.00, 13-Jun-2016
376,Revenue,CAHD,Bed and Breakfast,Bed & Breakfast,Connolly & Callaghan Limited,441.00, 16-Jun-2016
377,Revenue,CAHD,Bed and Breakfast,Bed & Breakfast,Connolly & Callaghan Limited,511.00, 16-Jun-2016
378,Revenue,CAHD,Bed and Breakfast,Bed & Breakfast,Connolly & Callaghan Limited,476.00, 16-Jun-2016
379,Revenue,CAHD,Bed and Breakfast,Bed & Breakfast,Connolly & Callaghan Limited,455.00, 16-Jun-2016
380,Revenue,CAHD,Bed and Breakfast,Bed & Breakfast,Connolly & Callaghan Limited,441.00, 13-Jun-2016
381,Revenue,CAHD,Bed and Breakfast,Bed & Breakfast,Connolly & Callaghan Limited,476.00, 13-Jun-2016
382,Revenue,CAHD,Bed and Breakfast,Bed & Breakfast,Connolly & Callaghan Limited,651.00, 13-Jun-2016
383,Revenue,CAHD,Bed and Breakfast,Bed & Breakfast,Connolly & Callaghan Limited,546.00, 13-Jun-2016
384,Revenue,CAHD,Bed and Breakfast,Bed & Breakfast,Connolly & Callaghan Limited,616.00, 16-Jun-2016
385,Revenue,CAHD,Bed and Breakfast,Bed & Breakfast,Connolly & Callaghan Limited,616.00, 22-Jun-2016
386,Revenue,CAHD,Bed and Breakfast,Bed & Breakfast,Connolly & Callaghan Limited,511.00, 20-Jun-2016
387,Revenue,CAHD,Bed and Breakfast,Bed & Breakfast,Connolly & Callaghan Limited,441.00, 20-Jun-2016
388,Revenue,CAHD,Bed and Breakfast,Bed & Breakfast,Connolly & Callaghan Limited,511.00, 20-Jun-2016
389,Revenue,CAHD,Bed and Breakfast,Bed & Breakfast,Connolly & Callaghan Limited,476.00, 20-Jun-2016
390,Revenue,CAHD,Bed and Breakfast,Bed & Breakfast,Connolly & Callaghan Limited,455.00, 20-Jun-2016
391,Revenue,CAHD,Bed and Breakfast,Bed & Breakfast,Connolly & Callaghan Limited,441.00, 20-Jun-2016
392,Revenue,CAHD,Bed and Breakfast,Bed & Breakfast,Connolly & Callaghan Limited,476.00, 20-Jun-2016
393,Revenue,CAHD,Bed and Breakfast,Bed & Breakfast,Connolly & Callaghan Limited,651.00, 21-Jun-2016
394,Revenue,CAHD,Bed and Breakfast,Bed & Breakfast,Connolly & Callaghan Limited,546.00, 20-Jun-2016
395,Revenue,CAHD,Bed and Breakfast,Bed & Breakfast,Connolly & Callaghan Limited,616.00, 20-Jun-2016
396,Revenue,CAHD,Bed and Breakfast,Bed & Breakfast,Connolly & Callaghan Limited,616.00, 20-Jun-2016
397,Revenue,CAHD,Bed and Breakfast,Bed & Breakfast,Connolly & Callaghan Limited,511.00, 28-Jun-2016
398,Revenue,CAHD,Bed and Breakfast,Bed & Breakfast,Connolly & Callaghan Limited,441.00, 28-Jun-2016
399,Revenue,CAHD,Bed and Breakfast,Bed & Breakfast,Connolly & Callaghan Limited,441.00, 30-Jun-2016
400,Revenue,CAHD,Bed and Breakfast,Bed & Breakfast,Connolly & Callaghan Limited,511.00, 28-Jun-2016
401,Revenue,CAHD,Bed and Breakfast,Bed & Breakfast,Connolly & Callaghan Limited,476.00, 28-Jun-2016
402,Revenue,CAHD,Bed and Breakfast,Bed & Breakfast,Connolly & Callaghan Limited,441.00, 29-Jun-2016
403,Revenue,CAHD,Bed and Breakfast,Bed & Breakfast,Connolly & Callaghan Limited,441.00, 28-Jun-2016
404,Revenue,CAHD,Bed and Breakfast,Bed & Breakfast,Connolly & Callaghan Limited,476.00, 28-Jun-2016
405,Revenue,CAHD,Bed and Breakfast,Bed & Breakfast,Connolly & Callaghan Limited,651.00, 28-Jun-2016
406,Revenue,CAHD,Bed and Breakfast,Bed & Breakfast,Connolly & Callaghan Limited,616.00, 28-Jun-2016
407,Revenue,CAHD,Bed and Breakfast,Bed & Breakfast,Connolly & Callaghan Limited,616.00, 28-Jun-2016
408,Revenue,CAHD,Bed Purchasing - S28A - Over 65- North,Permanent Residential,Cream Ii Ltd  Longrun House,8206.76, 07-Jun-2016
409,Revenue,CAHD,Bed Purchasing - South,Permanent Residential,Cream Ii Ltd  Longrun House,3083.64, 07-Jun-2016
410,Revenue,CAHD,Jointly Funded H&SC Packages,Permanent Residential,Cream Ii Ltd  Longrun House,2683.04, 07-Jun-2016
411,Revenue,CAHD,Bed purchasing -S28A  Under 65 - North,Permanent Residential,Creedy Court,9527.44, 07-Jun-2016
412,Revenue,CAHD,Bed Purchasing - S28A - Over 65- North,Permanent Residential,Creedy Court,7901.72, 07-Jun-2016
413,Revenue,CAHD,Bed Purchasing - North,Permanent Residential,Creedy Court,12895.24, 07-Jun-2016
414,Revenue,CAHD,Tenancy Start Up Scheme,Other Supplies & Services,Curo Care & Support,562.68, 14-Jun-2016
415,Revenue,CAHD,Bed Purchasing - South,Permanent Residential,Daneswood,11269.36, 07-Jun-2016
416,Revenue,CAHD,Bed Purchasing - North,Permanent Residential,Daneswood,9343.92, 07-Jun-2016
417,Revenue,CAHD,Bed Purchasing - Elderly S117- North,Permanent Nursing,Danshell Healthcare Group,10285.72, 07-Jun-2016
418,Revenue,CAHD,Jointly Funded H&SC Packages,Permanent Nursing,Danshell Healthcare Group,1526.28, 07-Jun-2016
419,Revenue,CAHD,Learning Difficulties PSL,Other Supplies & Services,Individual,2105.50, 22-Jun-2016
420,Revenue,CAHD,Home Care - Elderly - South,Supported Living,Design House,2711.04, 07-Jun-2016
421,Revenue,CAHD,Home Care - Elderly - South,Supported Living,Design House,2898.08, 07-Jun-2016
422,Revenue,CAHD,Home Care - Elderly - South,Supported Living,Design House,2964.08, 07-Jun-2016
423,Revenue,CAHD,Home Care - Elderly - South,Supported Living,Design House,2832.08, 07-Jun-2016
424,Revenue,CAHD,Home Care - Elderly - South,Supported Living,Design House,2496.52, 07-Jun-2016
425,Revenue,CAHD,Home Care - Elderly - South,Supported Living,Design House,2496.52, 07-Jun-2016
426,Revenue,CAHD,Home Care - Elderly - South,Supported Living,Design House,2381.04, 07-Jun-2016
427,Revenue,CAHD,Home Care - Elderly - South,Supported Living,Design House,3852.08, 07-Jun-2016
428,Revenue,CAHD,Home Care - Elderly - South,Supported Living,Design House,2744.04, 07-Jun-2016
429,Revenue,CAHD,Home Care - Elderly - South,Supported Living,Design House,2793.56, 07-Jun-2016
430,Revenue,CAHD,Home Care - Elderly - South,Supported Living,Design House,2135.92, 07-Jun-2016
431,Revenue,CAHD,Home Care - Elderly - South,Supported Living,Design House,2135.92, 07-Jun-2016
432,Revenue,CAHD,Bed Purchasing - South,Permanent Residential,Devon & Cornwall Autistic Community Trus,9082.00, 07-Jun-2016
433,Revenue,CAHD,Home Care - Elderly - South,Day Care / Social Activities,Dhek Bhal,198.80, 06-Jun-2016
434,Revenue,CAHD,Home Care - Elderly - South,Other Small Contracts,Dhek Bhal,278.32, 06-Jun-2016
435,Revenue,CAHD,Home Care - Elderly - North,Other Small Contracts,Dhek Bhal,119.28, 06-Jun-2016
436,Revenue,CAHD,Home Care - Elderly - South,Day Care / Social Activities,Dhek Bhal,198.80, 14-Jun-2016
437,Revenue,CAHD,Home Care - Elderly - South,Other Small Contracts,Dhek Bhal,238.56, 14-Jun-2016
438,Revenue,CAHD,Home Care - Elderly - North,Other Small Contracts,Dhek Bhal,159.04, 14-Jun-2016
439,Revenue,CAHD,Home Care - Elderly - South,Day Care / Social Activities,Dhek Bhal,198.80, 14-Jun-2016
440,Revenue,CAHD,Home Care - Elderly - South,Other Small Contracts,Dhek Bhal,238.56, 14-Jun-2016
441,Revenue,CAHD,Home Care - Elderly - North,Other Small Contracts,Dhek Bhal,119.28, 14-Jun-2016
442,Revenue,CAHD,Bed Purchasing - South,Permanent Residential,Dimensions  Suite 2,5005.24, 07-Jun-2016
443,Revenue,CAHD,Training - Adult Services,Training Expenses,Distance Learning College & Training,1159.74, 21-Jun-2016
444,Revenue,CAHD,Home Care - Elderly - South,Day Care / Social Activities,DoCare Ltd,71.40, 02-Jun-2016
445,Revenue,CAHD,Home Care - Elderly - South,Other Small Contracts,DoCare Ltd,601.80, 02-Jun-2016
446,Revenue,CAHD,Home Care - Elderly - North,Other Small Contracts,DoCare Ltd,2499.00, 02-Jun-2016
447,Revenue,CAHD,Home Care - Elderly - South,Day Care / Social Activities,DoCare Ltd,71.40, 07-Jun-2016
448,Revenue,CAHD,Home Care - Elderly - South,Other Small Contracts,DoCare Ltd,642.60, 07-Jun-2016
449,Revenue,CAHD,Home Care - Elderly - North,Other Small Contracts,DoCare Ltd,2922.30, 07-Jun-2016
450,Revenue,CAHD,Home Care - Elderly - South,Day Care / Social Activities,DoCare Ltd,71.40, 06-Jun-2016
451,Revenue,CAHD,Home Care - Elderly - South,Other Small Contracts,DoCare Ltd,637.50, 06-Jun-2016
452,Revenue,CAHD,Home Care - Elderly - North,Other Small Contracts,DoCare Ltd,2427.60, 06-Jun-2016
453,Revenue,CAHD,Social Lettings Agency,Other Supplies & Services,Individual,605.64, 24-Jun-2016
454,Revenue,CAHD,MH Purchasing - Younger,Permanent Residential,Dunraven House,1905.28, 07-Jun-2016
455,Revenue,CAHD,Bed and Breakfast,Bed & Breakfast,E J Bartlett,420.00, 08-Jun-2016
456,Revenue,CAHD,Bed and Breakfast,Bed & Breakfast,E J Bartlett,679.00, 08-Jun-2016
457,Revenue,CAHD,Bed and Breakfast,Bed & Breakfast,E J Bartlett,420.00, 16-Jun-2016
458,Revenue,CAHD,Bed and Breakfast,Bed & Breakfast,E J Bartlett,582.00, 16-Jun-2016
459,Revenue,CAHD,Bed and Breakfast,Bed & Breakfast,E J Bartlett,525.00, 29-Jun-2016
460,Revenue,CAHD,Bed Purchasing - North,Permanent Residential,East Court,2273.20, 07-Jun-2016
461,Revenue,CAHD,Home Care - Elderly - South,Day Care / Social Activities,Easton Community Centre,533.28, 07-Jun-2016
462,Revenue,CAHD,Home Care - Elderly - South,Day Care / Social Activities,Easton Community Centre,533.28, 07-Jun-2016
463,Revenue,CAHD,Home Care - Elderly - North,Day Care / Social Activities,Easton Community Centre,533.28, 07-Jun-2016
464,Revenue,CAHD,Home Care - Elderly - North,Day Care / Social Activities,Easton Community Centre,533.28, 07-Jun-2016
465,Revenue,CAHD,Home Care - Elderly - South,Day Care / Social Activities,Eclipse Office Park,753.12, 07-Jun-2016
466,Revenue,CAHD,Home Care - Elderly - North,Day Care / Social Activities,Eclipse Office Park,1004.16, 07-Jun-2016
467,Revenue,CAHD,Home Care - Elderly - South,Day Care / Social Activities,Eclipse Office Park,627.60, 07-Jun-2016
468,Revenue,CAHD,Home Care - Elderly - South,Day Care / Social Activities,Eclipse Office Park,502.08, 07-Jun-2016
469,Revenue,CAHD,Home Care - Elderly - South,Day Care / Social Activities,Eclipse Office Park,502.08, 07-Jun-2016
470,Revenue,CAHD,Home Care - Elderly - South,Day Care / Social Activities,Eclipse Office Park,878.64, 07-Jun-2016
471,Revenue,CAHD,Home Care - Elderly - South,Day Care / Social Activities,Eclipse Office Park,753.12, 07-Jun-2016
472,Revenue,CAHD,Home Care - Elderly - South,Day Care / Social Activities,Eclipse Office Park,878.64, 07-Jun-2016
473,Revenue,CAHD,Home Care - Elderly - South,Day Care / Social Activities,Eclipse Office Park,502.08, 07-Jun-2016
474,Revenue,CAHD,Home Care - Elderly - South,Day Care / Social Activities,Eclipse Office Park,502.08, 07-Jun-2016
475,Revenue,CAHD,Home Care - Elderly - South,Day Care / Social Activities,Eclipse Office Park,1255.20, 07-Jun-2016
476,Revenue,CAHD,Home Care - Elderly - South,Day Care / Social Activities,Eclipse Office Park,753.12, 07-Jun-2016
477,Revenue,CAHD,Home Care - Elderly - South,Day Care / Social Activities,Eclipse Office Park,878.64, 07-Jun-2016
478,Revenue,CAHD,Home Care - Elderly - South,Day Care / Social Activities,Eclipse Office Park,878.64, 07-Jun-2016
479,Revenue,CAHD,18-25 Year Olds,Day Care / Social Activities,Eclipse Office Park,689.52, 07-Jun-2016
480,Revenue,CAHD,Bed Purchasing - Southmead Hospital,Permanent Residential,Edgecumbe Lodge,1800.00, 07-Jun-2016
481,Revenue,CAHD,Bed Purchasing - South,Permanent Residential,Edgecumbe Lodge,1993.08, 07-Jun-2016
482,Revenue,CAHD,Bed Purchasing - South,Permanent Residential,Edgecumbe Lodge,1328.72, 07-Jun-2016
483,Revenue,CAHD,Bed Purchasing - South,Permanent Residential,Edgecumbe Lodge,1073.52, 07-Jun-2016
484,Revenue,CAHD,Bed Purchasing - Southmead Hospital,Permanent Residential,Edgecumbe Lodge,1628.76, 07-Jun-2016
485,Revenue,CAHD,Bed Purchasing - North,Permanent Residential,Edgecumbe Lodge,1039.76, 07-Jun-2016
486,Revenue,CAHD,Bed Purchasing - South,Permanent Residential,Edgecumbe Lodge,1590.12, 07-Jun-2016
487,Revenue,CAHD,Bed Purchasing - North,Permanent Residential,Edgecumbe Lodge,1465.28, 07-Jun-2016
488,Revenue,CAHD,Swift Dump Code,Permanent Residential,Edgecumbe Lodge,516.82, 07-Jun-2016
489,Revenue,CAHD,Bed Purchasing - South,Permanent Residential,Edgemont House Ltd,1163.88, 07-Jun-2016
490,Revenue,CAHD,Bed Purchasing - Southmead Hospital,Permanent Residential,Edgemont House Ltd,1329.68, 07-Jun-2016
491,Revenue,CAHD,Bed Purchasing - South,Respite Planned - Residential,Edgemont House Ltd,1357.14, 07-Jun-2016
492,Revenue,CAHD,Bed Purchasing - South,Respite Planned - Residential,Edgemont House Ltd,1071.43, 07-Jun-2016
493,Revenue,CAHD,Bed Purchasing - South,Permanent Residential,Edgemont House Ltd,1332.56, 07-Jun-2016
494,Revenue,CAHD,South Glos Users in South Glos Homes,Permanent Nursing,Edgemont View Nursing Home,736.00, 07-Jun-2016
495,Revenue,CAHD,Bed Purchasing - South,Permanent Nursing,Edgemont View Nursing Home,1380.64, 07-Jun-2016
496,Revenue,CAHD,South Glos Users in South Glos Homes,Permanent Nursing,Edgemont View Nursing Home,752.00, 07-Jun-2016
497,Revenue,CAHD,Bed Purchasing - South,Permanent Nursing,Edgemont View Nursing Home,1776.28, 07-Jun-2016
498,Revenue,CAHD,Bed Purchasing - South,Permanent Nursing,Edgemont View Nursing Home,1660.08, 07-Jun-2016
499,Revenue,CAHD,Bed Purchasing - South,Permanent Nursing,Edgemont View Nursing Home,1486.20, 07-Jun-2016
500,Revenue,CAHD,Training - Adult Services,Training Expenses,Eils/Scils,3325.00, 24-Jun-2016
501,Revenue,CAHD,Planning and Partnerships Procurement,Other Supplies & Services,Eldercare,1569.46, 21-Jun-2016
502,Revenue,CAHD,Planning and Partnerships Procurement,Other Supplies & Services,Eldercare,3120.15, 21-Jun-2016
503,Revenue,CAHD,Planning and Partnerships Procurement,Other Supplies & Services,Eldercare,3116.49, 30-Jun-2016
504,Revenue,CAHD,Supporting People Programme,Grants to Voluntary Bodies,Elim Housing Association Limited,5139.16, 01-Jun-2016
505,Revenue,CAHD,Home Care - Elderly - South,Day Care / Social Activities,Elite Home Care Ltd,94.08, 02-Jun-2016
506,Revenue,CAHD,Home Care - Elderly - South,Other Small Contracts,Elite Home Care Ltd,7400.96, 02-Jun-2016
507,Revenue,CAHD,Home Care - Elderly - South,Day Care / Social Activities,Elite Home Care Ltd,98.56, 06-Jun-2016
508,Revenue,CAHD,Home Care - Elderly - South,Other Small Contracts,Elite Home Care Ltd,6935.04, 06-Jun-2016
509,Revenue,CAHD,Home Care - Elderly - South,Day Care / Social Activities,Elite Home Care Ltd,98.56, 14-Jun-2016
510,Revenue,CAHD,Home Care - Elderly - South,Other Small Contracts,Elite Home Care Ltd,7042.56, 14-Jun-2016
511,Revenue,CAHD,Home Care - Elderly - South,Day Care / Social Activities,Elite Home Care Ltd,103.04, 22-Jun-2016
512,Revenue,CAHD,Home Care - Elderly - South,Other Small Contracts,Elite Home Care Ltd,6554.24, 22-Jun-2016
513,Revenue,CAHD,Bed Purchasing - North,Permanent Residential,Epworth House,1060.80, 07-Jun-2016
514,Revenue,CAHD,Home Care - Elderly - South,Other Small Contracts,Everycare (Bristol) Ltd,3881.37, 15-Jun-2016
515,Revenue,CAHD,Home Care - Elderly - North,Other Small Contracts,Everycare (Bristol) Ltd,1678.60, 15-Jun-2016
516,Revenue,CAHD,Home Care - Elderly - South,Other Small Contracts,Everycare (Bristol) Ltd,3924.00, 30-Jun-2016
517,Revenue,CAHD,Home Care - Elderly - North,Other Small Contracts,Everycare (Bristol) Ltd,1678.60, 30-Jun-2016
518,Revenue,CAHD,Home Care - Elderly - South,Other Small Contracts,Everycare (Bristol) Ltd,3610.08, 30-Jun-2016
519,Revenue,CAHD,Home Care - Elderly - North,Other Small Contracts,Everycare (Bristol) Ltd,1373.40, 30-Jun-2016
520,Revenue,CAHD,Homeless - Private Sector Leasing,Other Supplies & Services,Express Property Services Limited,2505.58, 29-Jun-2016
521,Revenue,CAHD,Homeless - Private Sector Leasing,Prop.Serv. General Repairs,Express Property Services Limited,2333.42, 02-Jun-2016
522,Revenue,CAHD,Homeless - Private Sector Leasing,Prop.Serv. General Repairs,Express Property Services Limited,768.02, 20-Jun-2016
523,Revenue,CAHD,Bed Purchasing - South,Permanent Nursing,Fairview Court,2469.36, 07-Jun-2016
524,Revenue,CAHD,Bed Purchasing - Southmead Hospital,Permanent Nursing,Fairview Court,1910.88, 07-Jun-2016
525,Revenue,CAHD,Bed Purchasing - Southmead Hospital,Permanent Nursing,Fairview Court,3275.58, 07-Jun-2016
526,Revenue,CAHD,Bed Purchasing - Southmead Hospital,Permanent Nursing,Fairview Court,2183.72, 07-Jun-2016
527,Revenue,CAHD,Bed Purchasing - South,Permanent Nursing,Fairview Court,1110.52, 07-Jun-2016
528,Revenue,CAHD,Bed purchasing - Elderly S117 - South,Permanent Nursing,Fairview Court,2040.00, 07-Jun-2016
529,Revenue,CAHD,Bed Purchasing - South,Permanent Nursing,Fairview Court,1591.68, 07-Jun-2016
530,Revenue,CAHD,South Glos Users in South Glos Homes,Permanent Nursing,Fairview Court,832.00, 07-Jun-2016
531,Revenue,CAHD,South Glos Users in South Glos Homes,Permanent Nursing,Fairview Court,672.00, 07-Jun-2016
532,Revenue,CAHD,Bed Purchasing - North,Permanent Nursing,Fairview Court,2178.03, 07-Jun-2016
533,Revenue,CAHD,Bed Purchasing - South,Permanent Nursing,Fairview Court,2224.72, 07-Jun-2016
534,Revenue,CAHD,South Glos Users in South Glos Homes,Permanent Nursing,Fairview Court,1632.00, 07-Jun-2016
535,Revenue,CAHD,South Glos Users in South Glos Homes,Permanent Nursing,Fairview Court,832.00, 07-Jun-2016
536,Revenue,CAHD,South Glos Users in South Glos Homes,Permanent Nursing,Fairview Court,2064.00, 07-Jun-2016
537,Revenue,CAHD,South Glos Users in South Glos Homes,Permanent Nursing,Fairview Court,832.00, 07-Jun-2016
538,Revenue,CAHD,South Glos Users in South Glos Homes,Permanent Nursing,Fairview Court,832.00, 07-Jun-2016
539,Revenue,CAHD,Bed Purchasing - South,Permanent Nursing,Fairview Court,1894.88, 07-Jun-2016
540,Revenue,CAHD,Bed Purchasing - North,Permanent Nursing,Fairview Court,2485.36, 07-Jun-2016
541,Revenue,CAHD,Bed Purchasing - South,Permanent Nursing,Fairview Court,1807.52, 07-Jun-2016
542,Revenue,CAHD,Bed Purchasing - South,Permanent Nursing,Fairview Court,2035.76, 07-Jun-2016
543,Revenue,CAHD,Bed Purchasing - South,Permanent Nursing,Fairview Court,1894.88, 07-Jun-2016
544,Revenue,CAHD,Bed purchasing - Elderly S117 - South,Permanent Residential,Fairview House,1963.92, 07-Jun-2016
545,Revenue,CAHD,Bed Purchasing - Southmead Hospital,Permanent Residential,Fairview House,1053.76, 07-Jun-2016
546,Revenue,CAHD,Bed Purchasing - South,Permanent Residential,Fairview House,879.60, 07-Jun-2016
547,Revenue,CAHD,Bed Purchasing - South,Permanent Residential,Fairview House,736.16, 07-Jun-2016
548,Revenue,CAHD,Bed Purchasing - South,Permanent Residential,Fairview House,1285.20, 07-Jun-2016
549,Revenue,CAHD,Bed Purchasing - South,Permanent Residential,Fairview House,983.68, 07-Jun-2016
550,Revenue,CAHD,Bed Purchasing - South,Permanent Residential,Fairview House,1238.52, 07-Jun-2016
551,Revenue,CAHD,Bed Purchasing - South,Permanent Residential,Fairview House,1146.52, 07-Jun-2016
552,Revenue,CAHD,Bed Purchasing - South,Permanent Residential,Fairview House,1365.00, 07-Jun-2016
553,Revenue,CAHD,Bed Purchasing - South,Permanent Residential,Fairview House,1054.60, 07-Jun-2016
554,Revenue,CAHD,Bed Purchasing - South,Permanent Residential,Fairview House,1475.08, 07-Jun-2016
555,Revenue,CAHD,Bed Purchasing - Southmead Hospital,Permanent Residential,Faith House,571.68, 07-Jun-2016
556,Revenue,CAHD,Bed Purchasing - Southmead Hospital,Permanent Residential,Faith House,1254.20, 07-Jun-2016
557,Revenue,CAHD,Bed Purchasing - North,Permanent Residential,Fernbank,7900.60, 07-Jun-2016
558,Revenue,CAHD,Bed Purchasing - North,Permanent Nursing,Field House Care Home,2554.96, 07-Jun-2016
559,Revenue,CAHD,Bed Purchasing - Southmead Hospital,Permanent Nursing,Field House Care Home,2227.92, 07-Jun-2016
560,Revenue,CAHD,Home Care - Elderly - South,Other Small Contracts,Firstpoint Homecare Ltd,1872.30, 14-Jun-2016
561,Revenue,CAHD,Home Care - Elderly - North,Day Care / Social Activities,Firstpoint Homecare Ltd,122.45, 14-Jun-2016
562,Revenue,CAHD,Home Care - Elderly - North,Other Small Contracts,Firstpoint Homecare Ltd,288.35, 14-Jun-2016
563,Revenue,CAHD,Home Care - Elderly - South,Other Small Contracts,Firstpoint Homecare Ltd,1702.45, 14-Jun-2016
564,Revenue,CAHD,Home Care - Elderly - North,Day Care / Social Activities,Firstpoint Homecare Ltd,118.50, 14-Jun-2016
565,Revenue,CAHD,Home Care - Elderly - North,Other Small Contracts,Firstpoint Homecare Ltd,284.42, 14-Jun-2016
566,Revenue,CAHD,Home Care - Elderly - South,Other Small Contracts,Firstpoint Homecare Ltd,1591.85, 14-Jun-2016
567,Revenue,CAHD,Home Care - Elderly - North,Day Care / Social Activities,Firstpoint Homecare Ltd,118.50, 14-Jun-2016
568,Revenue,CAHD,Home Care - Elderly - North,Other Small Contracts,Firstpoint Homecare Ltd,296.25, 14-Jun-2016
569,Revenue,CAHD,Home Care - Elderly - South,Other Small Contracts,Firstpoint Homecare Ltd,1493.10, 21-Jun-2016
570,Revenue,CAHD,Home Care - Elderly - North,Day Care / Social Activities,Firstpoint Homecare Ltd,114.55, 21-Jun-2016
571,Revenue,CAHD,Home Care - Elderly - North,Other Small Contracts,Firstpoint Homecare Ltd,284.40, 21-Jun-2016
572,Revenue,CAHD,Bed Purchasing - South,Permanent Residential,Four Seasons Health Care,1147.24, 07-Jun-2016
573,Revenue,CAHD,Home Care - Elderly - South,Day Care / Social Activities,Fourways Care Limited,395.24, 07-Jun-2016
574,Revenue,CAHD,Home Care - Elderly - South,Other Small Contracts,Fourways Care Limited,3812.62, 07-Jun-2016
575,Revenue,CAHD,Home Care - Elderly - North,Other Small Contracts,Fourways Care Limited,3788.52, 07-Jun-2016
576,Revenue,CAHD,Younger MH non-res purchasing,Day Care / Social Activities,Fourways Care Limited,77.12, 07-Jun-2016
577,Revenue,CAHD,Younger MH non-res purchasing,Other Small Contracts,Fourways Care Limited,159.06, 07-Jun-2016
578,Revenue,CAHD,Home Care - Elderly - South,Day Care / Social Activities,Fourways Care Limited,395.24, 14-Jun-2016
579,Revenue,CAHD,Home Care - Elderly - South,Other Small Contracts,Fourways Care Limited,4015.06, 14-Jun-2016
580,Revenue,CAHD,Home Care - Elderly - North,Other Small Contracts,Fourways Care Limited,3774.06, 14-Jun-2016
581,Revenue,CAHD,Younger MH non-res purchasing,Day Care / Social Activities,Fourways Care Limited,81.94, 14-Jun-2016
582,Revenue,CAHD,Younger MH non-res purchasing,Other Small Contracts,Fourways Care Limited,163.88, 14-Jun-2016
583,Revenue,CAHD,Home Care - Elderly - South,Day Care / Social Activities,Fourways Care Limited,400.06, 15-Jun-2016
584,Revenue,CAHD,Home Care - Elderly - South,Other Small Contracts,Fourways Care Limited,4535.62, 15-Jun-2016
585,Revenue,CAHD,Home Care - Elderly - North,Other Small Contracts,Fourways Care Limited,3923.48, 15-Jun-2016
586,Revenue,CAHD,Younger MH non-res purchasing,Day Care / Social Activities,Fourways Care Limited,77.12, 15-Jun-2016
587,Revenue,CAHD,Younger MH non-res purchasing,Other Small Contracts,Fourways Care Limited,106.04, 15-Jun-2016
588,Revenue,CAHD,Supporting People Programme,Grants to Voluntary Bodies,Freeways Trust Limited,8162.58, 01-Jun-2016
589,Revenue,CAHD,Freeways,Permanent Residential,Freeways Trust Limited,3705.32, 23-Jun-2016
590,Revenue,CAHD,Freeways,Permanent Residential,Freeways Trust Limited,2331.13, 23-Jun-2016
591,Revenue,CAHD,Freeways,Permanent Residential,Freeways Trust Limited,2409.93, 23-Jun-2016
592,Revenue,CAHD,Freeways,Permanent Residential,Freeways Trust Limited,1817.68, 23-Jun-2016
593,Revenue,CAHD,Freeways,Permanent Residential,Freeways Trust Limited,1333.28, 23-Jun-2016
594,Revenue,CAHD,Freeways,Permanent Residential,Freeways Trust Limited,2331.13, 23-Jun-2016
595,Revenue,CAHD,Freeways,Permanent Residential,Freeways Trust Limited,3454.92, 23-Jun-2016
596,Revenue,CAHD,Freeways,Permanent Residential,Freeways Trust Limited,2731.73, 23-Jun-2016
597,Revenue,CAHD,Freeways,Permanent Residential,Freeways Trust Limited,3614.51, 23-Jun-2016
598,Revenue,CAHD,Freeways,Permanent Residential,Freeways Trust Limited,2731.73, 23-Jun-2016
599,Revenue,CAHD,Freeways,Permanent Residential,Freeways Trust Limited,2749.17, 23-Jun-2016
600,Revenue,CAHD,Freeways,Permanent Residential,Freeways Trust Limited,3508.85, 23-Jun-2016
601,Revenue,CAHD,Freeways,Permanent Residential,Freeways Trust Limited,3158.33, 23-Jun-2016
602,Revenue,CAHD,Freeways,Permanent Residential,Freeways Trust Limited,3646.61, 23-Jun-2016
603,Revenue,CAHD,Freeways,Permanent Residential,Freeways Trust Limited,7455.24, 23-Jun-2016
604,Revenue,CAHD,Bed Purchasing - North,Permanent Residential,Freeways Trust Ltd,2935.68, 07-Jun-2016
605,Revenue,CAHD,Bed purchasing - S28A Under 65 - South,Permanent Residential,Freeways Trust Ltd,2997.08, 07-Jun-2016
606,Revenue,CAHD,Bed Purchasing - North,Permanent Residential,Freeways Trust Ltd,3212.08, 07-Jun-2016
607,Revenue,CAHD,Bed Purchasing - North,Permanent Residential,Freeways Trust Ltd,2348.56, 07-Jun-2016
608,Revenue,CAHD,Bed Purchasing - North,Permanent Residential,Freeways Trust Ltd,2803.84, 07-Jun-2016
609,Revenue,CAHD,Bed Purchasing - South,Permanent Residential,Freeways Trust Ltd,3347.36, 07-Jun-2016
610,Revenue,CAHD,Bed Purchasing - North,Permanent Residential,Freeways Trust Ltd,2307.20, 07-Jun-2016
611,Revenue,CAHD,Bed Purchasing - South,Permanent Residential,Freeways Trust Ltd,2458.68, 07-Jun-2016
612,Revenue,CAHD,Bed Purchasing - North,Permanent Residential,Freeways Trust Ltd,2725.04, 07-Jun-2016
613,Revenue,CAHD,Bed Purchasing - North,Permanent Residential,Freeways Trust Ltd,3218.36, 07-Jun-2016
614,Revenue,CAHD,18-25 Year Olds,Permanent Residential,Freeways Trust Ltd,3456.00, 07-Jun-2016
615,Revenue,CAHD,Bed Purchasing - North,Permanent Residential,Freeways Trust Ltd,3924.12, 07-Jun-2016
616,Revenue,CAHD,Pathway 3 - (Complex Beds),Permanent Nursing,Frenchay House,3162.00, 21-Jun-2016
617,Revenue,CAHD,Community Support - South,Preventative Assistance,Friends for Pets North Bristol Ltd,720.40, 01-Jun-2016
618,Revenue,CAHD,Bed Purchasing - South,Permanent Nursing,Fshc  1St Floor,5159.80, 07-Jun-2016
619,Revenue,CAHD,Bed Purchasing - South,Permanent Nursing,Fshc  1St Floor,1535.10, 07-Jun-2016
620,Revenue,CAHD,Swift Dump Code,Permanent Residential,Fshc  1St Floor,6634.46, 07-Jun-2016
621,Revenue,CAHD,Swift Dump Code,Permanent Residential,Fshc  1St Floor,841.86, 07-Jun-2016
622,Revenue,CAHD,Bed Purchasing - South,Permanent Nursing,Fshc  1St Floor,561.24, 07-Jun-2016
623,Revenue,CAHD,Bed Purchasing - South,Permanent Nursing,Fshc  1St Floor,1067.64, 07-Jun-2016
624,Revenue,CAHD,Bed Purchasing - Southmead Hospital,Permanent Residential,Fshc  1St Floor,897.96, 07-Jun-2016
625,Revenue,CAHD,Bed Purchasing - South,Permanent Nursing,Fshc  1St Floor,1021.32, 07-Jun-2016
626,Revenue,CAHD,Bed Purchasing - Southmead Hospital,Permanent Nursing,Fshc  1St Floor,1324.44, 07-Jun-2016
627,Revenue,CAHD,Bed Purchasing - Southmead Hospital,Permanent Nursing,Fshc  1St Floor,1371.08, 07-Jun-2016
628,Revenue,CAHD,South Glos Users in South Glos Homes,Permanent Nursing,Fshc  1St Floor,944.00, 07-Jun-2016
629,Revenue,CAHD,South Glos Users in South Glos Homes,Permanent Nursing,Fshc  1St Floor,832.00, 07-Jun-2016
630,Revenue,CAHD,Bed Purchasing - Southmead Hospital,Permanent Nursing,Fshc  1St Floor,1407.08, 07-Jun-2016
631,Revenue,CAHD,Bed Purchasing - Southmead Hospital,Permanent Nursing,Fshc  1St Floor,1082.08, 07-Jun-2016
632,Revenue,CAHD,South Glos Users in South Glos Homes,Permanent Nursing,Fshc  1St Floor,672.00, 07-Jun-2016
633,Revenue,CAHD,Bed Purchasing - South,Permanent Nursing,Fshc  1St Floor,1759.84, 07-Jun-2016
634,Revenue,CAHD,Bed Purchasing - Southmead Hospital,Permanent Nursing,Fshc  1St Floor,1759.84, 07-Jun-2016
635,Revenue,CAHD,South Glos Users in South Glos Homes,Permanent Nursing,Fshc  1St Floor,752.00, 07-Jun-2016
636,Revenue,CAHD,Bed Purchasing - Southmead Hospital,Permanent Nursing,Fshc  1St Floor,1407.08, 07-Jun-2016
637,Revenue,CAHD,Bed Purchasing - Southmead Hospital,Permanent Nursing,Fshc  1St Floor,1396.36, 07-Jun-2016
638,Revenue,CAHD,Bed Purchasing - South,Permanent Nursing,Fshc  1St Floor,1361.88, 07-Jun-2016
639,Revenue,CAHD,Bed Purchasing - Southmead Hospital,Permanent Nursing,Fshc  1St Floor,1407.08, 07-Jun-2016
640,Revenue,CAHD,Bed Purchasing - South,Permanent Nursing,Fshc  1St Floor,1186.80, 07-Jun-2016
641,Revenue,CAHD,Bed Purchasing - North,Permanent Nursing,Fshc  1St Floor,1929.88, 07-Jun-2016
642,Revenue,CAHD,Bed Purchasing - Southmead Hospital,Permanent Nursing,Fshc  1St Floor,1222.52, 07-Jun-2016
643,Revenue,CAHD,Bed Purchasing - South,Permanent Nursing,Fshc  1St Floor,1407.08, 07-Jun-2016
644,Revenue,CAHD,Bed Purchasing - South,Permanent Nursing,Fshc  1St Floor,1371.92, 07-Jun-2016
645,Revenue,CAHD,Bed Purchasing - North,Permanent Nursing,Fshc  1St Floor,1624.96, 07-Jun-2016
646,Revenue,CAHD,Bed Purchasing - Southmead Hospital,Permanent Nursing,Fshc  1St Floor,1407.08, 07-Jun-2016
647,Revenue,CAHD,Bed Purchasing - North,Permanent Nursing,Fshc  1St Floor,1110.16, 07-Jun-2016
648,Revenue,CAHD,South Glos Users in South Glos Homes,Permanent Nursing,Fshc  1St Floor,2064.00, 07-Jun-2016
649,Revenue,CAHD,Bed Purchasing - North,Permanent Residential,Fshc  1St Floor,1277.20, 07-Jun-2016
650,Revenue,CAHD,South Glos Users in South Glos Homes,Permanent Nursing,Fshc  1St Floor,528.00, 07-Jun-2016
651,Revenue,CAHD,Bed Purchasing - North,Permanent Nursing,Fshc  1St Floor,977.79, 07-Jun-2016
652,Revenue,CAHD,Bed Purchasing - North,Permanent Nursing,Fshc  1St Floor,666.41, 07-Jun-2016
653,Revenue,CAHD,Bed Purchasing - Southmead Hospital,Permanent Nursing,Fshc  1St Floor,1037.16, 07-Jun-2016
654,Revenue,CAHD,South Glos Users in South Glos Homes,Permanent Nursing,Fshc  1St Floor,1888.00, 07-Jun-2016
655,Revenue,CAHD,South Glos Users in South Glos Homes,Permanent Nursing,Fshc  1St Floor,832.00, 07-Jun-2016
656,Revenue,CAHD,Bed Purchasing - Southmead Hospital,Permanent Nursing,Fshc  1St Floor,1642.24, 07-Jun-2016
657,Revenue,CAHD,Bed Purchasing - North,Permanent Nursing,Fshc  1St Floor,1402.36, 07-Jun-2016
658,Revenue,CAHD,Bed Purchasing - North,Permanent Nursing,Fshc  1St Floor,1051.77, 07-Jun-2016
659,Revenue,CAHD,Bed Purchasing - Southmead Hospital,Permanent Nursing,Fshc  1St Floor,947.52, 07-Jun-2016
660,Revenue,CAHD,Bed Purchasing - Southmead Hospital,Permanent Residential,Fshc  1St Floor,1173.92, 07-Jun-2016
661,Revenue,CAHD,Bed Purchasing - Southmead Hospital,Permanent Nursing,Fshc  1St Floor,1120.64, 07-Jun-2016
662,Revenue,CAHD,Bed Purchasing - Southmead Hospital,Permanent Nursing,Fshc  1St Floor,1144.60, 07-Jun-2016
663,Revenue,CAHD,Bed Purchasing - Southmead Hospital,Permanent Nursing,Fshc  1St Floor,1407.08, 07-Jun-2016
664,Revenue,CAHD,Bed Purchasing - North,Permanent Nursing,Fshc  1St Floor,1342.64, 07-Jun-2016
665,Revenue,CAHD,Bed Purchasing - North,Permanent Nursing,Fshc  1St Floor,1228.80, 07-Jun-2016
666,Revenue,CAHD,Bed Purchasing - North,Permanent Residential,Fshc  1St Floor,1261.80, 07-Jun-2016
667,Revenue,CAHD,Bed Purchasing - South,Permanent Residential,Fshc  1St Floor,1162.00, 07-Jun-2016
668,Revenue,CAHD,Bed Purchasing - Southmead Hospital,Permanent Nursing,Fshc  1St Floor,2108.28, 07-Jun-2016
669,Revenue,CAHD,Bed Purchasing - Southmead Hospital,Permanent Nursing,Fshc  1St Floor,1407.08, 07-Jun-2016
670,Revenue,CAHD,Bed Purchasing - Southmead Hospital,Permanent Nursing,Fshc  1St Floor,1407.08, 07-Jun-2016
671,Revenue,CAHD,Bed Purchasing - North,Permanent Nursing,Fshc  1St Floor,558.32, 07-Jun-2016
672,Revenue,CAHD,Bed Purchasing - Southmead Hospital,Permanent Residential,Fshc  1St Floor,630.08, 07-Jun-2016
673,Revenue,CAHD,Bed Purchasing - Southmead Hospital,Permanent Residential,Fshc  1St Floor,1265.60, 07-Jun-2016
674,Revenue,CAHD,Bed Purchasing - North,Permanent Nursing,Fshc  1St Floor,1288.00, 07-Jun-2016
675,Revenue,CAHD,Bed Purchasing - North,Permanent Nursing,Fshc  1St Floor,920.76, 07-Jun-2016
676,Revenue,CAHD,Bed Purchasing - North,Permanent Nursing,Fshc  1St Floor,1407.08, 07-Jun-2016
677,Revenue,CAHD,Bed Purchasing - North,Permanent Nursing,Fshc  1St Floor,1592.28, 07-Jun-2016
678,Revenue,CAHD,Bed Purchasing - North,Permanent Residential,Fshc  1St Floor,1439.96, 07-Jun-2016
679,Revenue,CAHD,Bed Purchasing - North,Permanent Nursing,Fshc  1St Floor,1019.48, 07-Jun-2016
680,Revenue,CAHD,Bed Purchasing - North,Permanent Nursing,Fshc  1St Floor,1929.88, 07-Jun-2016
681,Revenue,CAHD,Bed Purchasing - North,Permanent Residential,Fshc  1St Floor,1281.48, 07-Jun-2016
682,Revenue,CAHD,South Glos Users in South Glos Homes,Permanent Nursing,Fshc  1St Floor,2064.00, 07-Jun-2016
683,Revenue,CAHD,South Glos Users in South Glos Homes,Permanent Nursing,Fshc  1St Floor,832.00, 07-Jun-2016
684,Revenue,CAHD,Bed Purchasing - Southmead Hospital,Permanent Nursing,Fshc  1St Floor,1120.76, 07-Jun-2016
685,Revenue,CAHD,Bed Purchasing - North,Permanent Nursing,Fshc  1St Floor,1439.08, 07-Jun-2016
686,Revenue,CAHD,Bed Purchasing - Southmead Hospital,Permanent Nursing,Fshc  1St Floor,985.80, 07-Jun-2016
687,Revenue,CAHD,Bed Purchasing - North,Permanent Residential,Fshc  1St Floor,1440.32, 07-Jun-2016
688,Revenue,CAHD,Bed Purchasing - North,Permanent Nursing,Fshc  1St Floor,1613.48, 07-Jun-2016
689,Revenue,CAHD,Bed Purchasing - North,Permanent Nursing,Fshc  1St Floor,1407.08, 07-Jun-2016
690,Revenue,CAHD,South Glos Users in South Glos Homes,Permanent Nursing,Fshc  1St Floor,1136.00, 07-Jun-2016
691,Revenue,CAHD,Bed Purchasing - South,Permanent Nursing,Fshc  1St Floor,1427.08, 07-Jun-2016
692,Revenue,CAHD,Bed Purchasing - Southmead Hospital,Permanent Nursing,Fshc  1St Floor,1811.52, 07-Jun-2016
693,Revenue,CAHD,Bed Purchasing - Southmead Hospital,Permanent Nursing,Fshc  1St Floor,1207.68, 07-Jun-2016
694,Revenue,CAHD,South Glos Users in South Glos Homes,Permanent Nursing,Fshc  1St Floor,1344.00, 07-Jun-2016
695,Revenue,CAHD,Bed Purchasing - North,Permanent Nursing,Fshc  1St Floor,804.69, 07-Jun-2016
696,Revenue,CAHD,South Glos Users in South Glos Homes,Permanent Nursing,Fshc  1St Floor,1136.00, 07-Jun-2016
697,Revenue,CAHD,Bed Purchasing - Southmead Hospital,Respite Planned - Residential,Fshc  1St Floor,928.57, 07-Jun-2016
698,Revenue,CAHD,South Glos Users in South Glos Homes,Permanent Nursing,Fshc  1St Floor,832.00, 07-Jun-2016
699,Revenue,CAHD,South Glos Users in South Glos Homes,Permanent Nursing,Fshc  1St Floor,896.00, 07-Jun-2016
700,Revenue,CAHD,South Glos Users in South Glos Homes,Permanent Nursing,Fshc  1St Floor,640.00, 07-Jun-2016
701,Revenue,CAHD,South Glos Users in South Glos Homes,Permanent Nursing,Fshc  1St Floor,1792.00, 07-Jun-2016
702,Revenue,CAHD,Bed Purchasing - North,Permanent Nursing,Fshc  1St Floor,1066.80, 07-Jun-2016
703,Revenue,CAHD,Bed Purchasing - North,Permanent Nursing,Fshc  1St Floor,584.10, 07-Jun-2016
704,Revenue,CAHD,Bed Purchasing - Southmead Hospital,Permanent Residential,Fshc  1St Floor,1185.64, 07-Jun-2016
705,Revenue,CAHD,South Glos Users in South Glos Homes,Permanent Nursing,Fshc  1St Floor,1504.00, 07-Jun-2016
706,Revenue,CAHD,South Glos Users in South Glos Homes,Permanent Nursing,Fshc  1St Floor,832.00, 07-Jun-2016
707,Revenue,CAHD,Bed Purchasing - Southmead Hospital,Permanent Nursing,Fshc  1St Floor,1361.84, 07-Jun-2016
708,Revenue,CAHD,Bed Purchasing - North,Permanent Nursing,Fshc  1St Floor,1031.92, 07-Jun-2016
709,Revenue,CAHD,Bed Purchasing - North,Permanent Nursing,Fshc  1St Floor,1979.58, 07-Jun-2016
710,Revenue,CAHD,Bed Purchasing - North,Permanent Nursing,Fshc  1St Floor,1319.72, 07-Jun-2016
711,Revenue,CAHD,Bed Purchasing - North,Permanent Nursing,Fshc  1St Floor,1516.80, 07-Jun-2016
712,Revenue,CAHD,Bed Purchasing - North,Permanent Nursing,Fshc  1St Floor,1357.25, 07-Jun-2016
713,Revenue,CAHD,Bed Purchasing - Southmead Hospital,Permanent Nursing,Fshc  1St Floor,594.56, 07-Jun-2016
714,Revenue,CAHD,Bed Purchasing - Southmead Hospital,Permanent Nursing,Fshc  1St Floor,1407.08, 07-Jun-2016
715,Revenue,CAHD,Bed Purchasing - Southmead Hospital,Permanent Nursing,Fshc  1St Floor,1407.08, 07-Jun-2016
716,Revenue,CAHD,Bed Purchasing - Southmead Hospital,Permanent Nursing,Fshc  1St Floor,588.15, 07-Jun-2016
717,Revenue,CAHD,Bed Purchasing - North,Permanent Nursing,Fshc  1St Floor,1383.08, 07-Jun-2016
718,Revenue,CAHD,Bed Purchasing - Southmead Hospital,Permanent Nursing,Fshc  1St Floor,1347.20, 07-Jun-2016
719,Revenue,CAHD,Bed Purchasing - Southmead Hospital,Permanent Nursing,Fshc  1St Floor,1663.50, 07-Jun-2016
720,Revenue,CAHD,Bed Purchasing - Southmead Hospital,Permanent Nursing,Fshc  1St Floor,1109.00, 07-Jun-2016
721,Revenue,CAHD,Bed Purchasing - North,Permanent Nursing,Fshc  1St Floor,1608.48, 07-Jun-2016
722,Revenue,CAHD,Bed Purchasing - North,Permanent Nursing,Fshc  1St Floor,1072.32, 07-Jun-2016
723,Revenue,CAHD,Bed Purchasing - North,Permanent Residential,Fshc  1St Floor,3082.56, 07-Jun-2016
724,Revenue,CAHD,Bed Purchasing - North,Permanent Nursing,Fshc  1St Floor,1413.40, 07-Jun-2016
725,Revenue,CAHD,Bed Purchasing - South,Respite Planned - Residential,Fshc  1St Floor,1972.00, 07-Jun-2016
726,Revenue,CAHD,Bed Purchasing - South,Permanent Nursing,Fshc  1St Floor,1211.24, 07-Jun-2016
727,Revenue,CAHD,Bed Purchasing - South,Permanent Nursing,Fshc  1St Floor,1311.52, 07-Jun-2016
728,Revenue,CAHD,Bed Purchasing - Southmead Hospital,Permanent Nursing,Fshc  1St Floor,1352.84, 07-Jun-2016
729,Revenue,CAHD,Bed Purchasing - South,Permanent Nursing,Fshc  1St Floor,1929.88, 07-Jun-2016
730,Revenue,CAHD,Bed Purchasing - Southmead Hospital,Permanent Residential,Fshc  1St Floor,1504.00, 07-Jun-2016
731,Revenue,CAHD,Bed Purchasing - North,Permanent Residential,Fshc  1St Floor,1198.12, 07-Jun-2016
732,Revenue,CAHD,Bed Purchasing - North,Permanent Nursing,Fshc  1St Floor,1157.00, 07-Jun-2016
733,Revenue,CAHD,Bed Purchasing - South,Permanent Residential,Fshc  1St Floor,1067.00, 07-Jun-2016
734,Revenue,CAHD,Bed Purchasing - South,Permanent Nursing,Fshc  1St Floor,1399.08, 07-Jun-2016
735,Revenue,CAHD,Bed Purchasing - Southmead Hospital,Permanent Nursing,Fshc  1St Floor,1407.08, 07-Jun-2016
736,Revenue,CAHD,Bed Purchasing - South,Permanent Nursing,Fshc  1St Floor,1135.32, 07-Jun-2016
737,Revenue,CAHD,Bed Purchasing - Southmead Hospital,Permanent Nursing,Fshc  1St Floor,1396.04, 07-Jun-2016
738,Revenue,CAHD,Bed Purchasing - Southmead Hospital,Permanent Nursing,Fshc  1St Floor,1270.48, 07-Jun-2016
739,Revenue,CAHD,Bed Purchasing - Southmead Hospital,Permanent Nursing,Fshc  1St Floor,1707.12, 07-Jun-2016
740,Revenue,CAHD,Bed Purchasing - South,Permanent Nursing,Fshc  1St Floor,1253.32, 07-Jun-2016
741,Revenue,CAHD,Bed Purchasing - Southmead Hospital,Permanent Nursing,Fshc  1St Floor,1322.44, 07-Jun-2016
742,Revenue,CAHD,South Glos Users in South Glos Homes,Permanent Nursing,Fshc  1St Floor,832.00, 07-Jun-2016
743,Revenue,CAHD,Bed Purchasing - South,Permanent Residential,Fshc  1St Floor,1277.20, 07-Jun-2016
744,Revenue,CAHD,Bed Purchasing - Southmead Hospital,Permanent Nursing,Fshc  1St Floor,1407.08, 07-Jun-2016
745,Revenue,CAHD,Bed Purchasing - South,Permanent Nursing,Fshc  1St Floor,1476.00, 07-Jun-2016
746,Revenue,CAHD,South Glos Users in South Glos Homes,Permanent Nursing,Fshc  1St Floor,1376.00, 07-Jun-2016
747,Revenue,CAHD,South Glos Users in South Glos Homes,Permanent Nursing,Fshc  1St Floor,832.00, 07-Jun-2016
748,Revenue,CAHD,Bed Purchasing - Southmead Hospital,Permanent Nursing,Fshc  1St Floor,1407.08, 07-Jun-2016
749,Revenue,CAHD,Bed Purchasing - Southmead Hospital,Permanent Nursing,Fshc  1St Floor,1342.52, 07-Jun-2016
750,Revenue,CAHD,South Glos Users in South Glos Homes,Permanent Nursing,Fshc  1St Floor,784.00, 07-Jun-2016
751,Revenue,CAHD,Bed Purchasing - Southmead Hospital,Permanent Residential,Fshc  1St Floor,1508.00, 07-Jun-2016
752,Revenue,CAHD,Bed Purchasing - Southmead Hospital,Permanent Nursing,Fshc  1St Floor,1100.61, 07-Jun-2016
753,Revenue,CAHD,Bed Purchasing - South,Permanent Residential,Fshc  1St Floor,696.56, 07-Jun-2016
754,Revenue,CAHD,Bed Purchasing - Southmead Hospital,Permanent Residential,Fshc  1St Floor,1142.12, 07-Jun-2016
755,Revenue,CAHD,Bed Purchasing - South,Permanent Nursing,Fshc  1St Floor,1420.32, 07-Jun-2016
756,Revenue,CAHD,Bed Purchasing - South,Permanent Nursing,Fshc  1St Floor,7848.20, 07-Jun-2016
757,Revenue,CAHD,Bed Purchasing - South,Permanent Nursing,Fshc  1St Floor,1878.20, 07-Jun-2016
758,Revenue,CAHD,Bed Purchasing - South,Permanent Nursing,Fshc  1St Floor,1155.60, 07-Jun-2016
759,Revenue,CAHD,Bed Purchasing - South,Permanent Residential,Fshc  1St Floor,1403.52, 07-Jun-2016
760,Revenue,CAHD,Bed Purchasing - South,Permanent Nursing,Fshc  1St Floor,1407.08, 07-Jun-2016
761,Revenue,CAHD,Bed Purchasing - South,Permanent Nursing,Fshc  1St Floor,1271.04, 07-Jun-2016
762,Revenue,CAHD,Bed Purchasing - Southmead Hospital,Permanent Nursing,Fshc  1St Floor,2309.36, 07-Jun-2016
763,Revenue,CAHD,Bed Purchasing - South,Permanent Nursing,Fshc  1St Floor,1435.08, 07-Jun-2016
764,Revenue,CAHD,Bed Purchasing - Southmead Hospital,Respite Planned - Nursing,Fshc  1St Floor,1904.00, 07-Jun-2016
765,Revenue,CAHD,Bed purchasing - Elderly S117 - South,Permanent Nursing,Fshc  1St Floor,1929.88, 07-Jun-2016
766,Revenue,CAHD,Bed Purchasing - South,Permanent Nursing,Fshc  1St Floor,1148.60, 07-Jun-2016
767,Revenue,CAHD,Bed Purchasing - Southmead Hospital,Permanent Nursing,Fshc  1St Floor,1255.20, 07-Jun-2016
768,Revenue,CAHD,Bed Purchasing - Southmead Hospital,Permanent Nursing,Fshc  1St Floor,1319.20, 07-Jun-2016
769,Revenue,CAHD,Bed Purchasing - Southmead Hospital,Permanent Nursing,Fshc  1St Floor,1407.08, 07-Jun-2016
770,Revenue,CAHD,Bed Purchasing - South,Permanent Nursing,Fshc  1St Floor,1271.00, 07-Jun-2016
771,Revenue,CAHD,Bed Purchasing - Southmead Hospital,Permanent Residential,Fshc  1St Floor,568.80, 07-Jun-2016
772,Revenue,CAHD,Bed Purchasing - North,Permanent Nursing,Fshc  1St Floor,1374.40, 07-Jun-2016
773,Revenue,CAHD,Bed Purchasing - Southmead Hospital,Respite Emergency - Residential,Fshc  1St Floor,2087.12, 07-Jun-2016
774,Revenue,CAHD,South Glos Users in South Glos Homes,Permanent Nursing,Fshc  1St Floor,832.00, 07-Jun-2016
775,Revenue,CAHD,South Glos Users in South Glos Homes,Permanent Nursing,Fshc  1St Floor,544.00, 07-Jun-2016
776,Revenue,CAHD,Bed Purchasing - North,Permanent Nursing,Fshc  1St Floor,1380.08, 07-Jun-2016
777,Revenue,CAHD,Bed Purchasing - Southmead Hospital,Permanent Nursing,Fshc  1St Floor,1438.72, 07-Jun-2016
778,Revenue,CAHD,Bed Purchasing - North,Permanent Nursing,Fshc  1St Floor,858.32, 07-Jun-2016
779,Revenue,CAHD,Bed Purchasing - North,Permanent Nursing,Fshc  1St Floor,1517.20, 07-Jun-2016
780,Revenue,CAHD,Bed Purchasing - Southmead Hospital,Permanent Nursing,Fshc  1St Floor,1499.28, 07-Jun-2016
781,Revenue,CAHD,Bed Purchasing - Southmead Hospital,Permanent Nursing,Fshc  1St Floor,1361.20, 07-Jun-2016
782,Revenue,CAHD,Bed Purchasing - Southmead Hospital,Permanent Nursing,Fshc  1St Floor,1517.20, 07-Jun-2016
783,Revenue,CAHD,Bed Purchasing - North,Permanent Nursing,Fshc  1St Floor,1388.92, 07-Jun-2016
784,Revenue,CAHD,Bed Purchasing - North,Permanent Nursing,Fshc  1St Floor,1317.40, 07-Jun-2016
785,Revenue,CAHD,Bed Purchasing - Southmead Hospital,Permanent Nursing,Fshc  1St Floor,1585.48, 07-Jun-2016
786,Revenue,CAHD,Bed Purchasing - Southmead Hospital,Permanent Residential,Fshc  1St Floor,1266.60, 07-Jun-2016
787,Revenue,CAHD,Bed Purchasing - Southmead Hospital,Permanent Nursing,Fshc  1St Floor,1397.44, 07-Jun-2016
788,Revenue,CAHD,Bed Purchasing - Southmead Hospital,Permanent Nursing,Fshc  1St Floor,1252.88, 07-Jun-2016
789,Revenue,CAHD,Bed Purchasing - South,Permanent Residential,Fshc  1St Floor,1677.20, 07-Jun-2016
790,Revenue,CAHD,Bed Purchasing - North,Permanent Residential,Fshc  1St Floor,1069.12, 07-Jun-2016
791,Revenue,CAHD,Bed Purchasing - South,Permanent Residential,Fshc  1St Floor,1386.44, 07-Jun-2016
792,Revenue,CAHD,Bed Purchasing - Southmead Hospital,Permanent Residential,Fshc  1St Floor,817.44, 07-Jun-2016
793,Revenue,CAHD,Bed Purchasing - South,Permanent Residential,Gladstone House,5354.36, 07-Jun-2016
794,Revenue,CAHD,Bed Purchasing - South,Permanent Residential,Glasallt Fawr,4734.32, 07-Jun-2016
795,Revenue,CAHD,Bed Purchasing - North,Permanent Nursing,Glebe House Nursing Home,2169.04, 07-Jun-2016
796,Revenue,CAHD,Bed Purchasing - North,Permanent Residential,Glebe House Nursing Home,2433.68, 07-Jun-2016
797,Revenue,CAHD,Bed Purchasing - North,Permanent Nursing,Glebe House Nursing Home,3460.50, 07-Jun-2016
798,Revenue,CAHD,Bed Purchasing - North,Permanent Nursing,Glebe House Nursing Home,2307.00, 07-Jun-2016
799,Revenue,CAHD,South Glos Users in South Glos Homes,Permanent Nursing,Glebe House Nursing Home,1936.00, 07-Jun-2016
800,Revenue,CAHD,South Glos Users in South Glos Homes,Permanent Nursing,Glebe House Nursing Home,832.00, 07-Jun-2016
801,Revenue,CAHD,Bed Purchasing - South,Permanent Residential,Glebe House Nursing Home,2476.72, 07-Jun-2016
802,Revenue,CAHD,Bed Purchasing - North,Permanent Nursing,Glebe House Nursing Home,2209.20, 07-Jun-2016
803,Revenue,CAHD,18-25 Year Olds,Permanent Residential,Gordena Care Home,4750.96, 07-Jun-2016
804,Revenue,CAHD,Bed Purchasing - South,Permanent Residential,Gordena Care Home,2170.96, 07-Jun-2016
805,Revenue,CAHD,Bed Purchasing - South,Permanent Residential,Gordena Care Home,3026.16, 07-Jun-2016
806,Revenue,CAHD,Bed Purchasing - South,Permanent Residential,Gordena Care Home,1965.88, 07-Jun-2016
807,Revenue,CAHD,Bed Purchasing - South,Respite Planned - Residential,Gordena Care Home,4137.76, 07-Jun-2016
808,Revenue,CAHD,Bed Purchasing - South,Permanent Residential,Gordena Care Home,3159.16, 07-Jun-2016
809,Revenue,CAHD,Bed Purchasing - South,Permanent Residential,Gordena Care Limited,4327.00, 07-Jun-2016
810,Revenue,CAHD,Bed Purchasing - South,Permanent Residential,Gordena Care Limited,4089.64, 07-Jun-2016
811,Revenue,CAHD,Bed purchasing - S28A Under 65 - South,Permanent Residential,Gordena Care Limited,4221.96, 07-Jun-2016
812,Revenue,CAHD,Bed Purchasing - North,Permanent Residential,Gordena Care Limited,4307.68, 07-Jun-2016
813,Revenue,CAHD,Bed Purchasing - South,Permanent Nursing,Gracefields Nursing Home,1732.24, 07-Jun-2016
814,Revenue,CAHD,Bed Purchasing - Southmead Hospital,Permanent Nursing,Gracefields Nursing Home,1674.96, 07-Jun-2016
815,Revenue,CAHD,Bed Purchasing - Southmead Hospital,Permanent Nursing,Gracefields Nursing Home,2151.80, 07-Jun-2016
816,Revenue,CAHD,Bed Purchasing - Southmead Hospital,Permanent Nursing,Gracefields Nursing Home,1921.25, 07-Jun-2016
817,Revenue,CAHD,Bed purchasing - Elderly S117 - South,Permanent Nursing,Gracefields Nursing Home,2414.28, 07-Jun-2016
818,Revenue,CAHD,South Glos Users in South Glos Homes,Permanent Nursing,Gracefields Nursing Home,832.00, 07-Jun-2016
819,Revenue,CAHD,South Glos Users in South Glos Homes,Permanent Nursing,Gracefields Nursing Home,736.00, 07-Jun-2016
820,Revenue,CAHD,South Glos Users in South Glos Homes,Permanent Nursing,Gracefields Nursing Home,2144.00, 07-Jun-2016
821,Revenue,CAHD,South Glos Users in South Glos Homes,Permanent Nursing,Gracefields Nursing Home,832.00, 07-Jun-2016
822,Revenue,CAHD,Bed Purchasing - Southmead Hospital,Permanent Nursing,Gracefields Nursing Home,1605.60, 07-Jun-2016
823,Revenue,CAHD,South Glos Users in South Glos Homes,Permanent Nursing,Gracefields Nursing Home,1120.00, 07-Jun-2016
824,Revenue,CAHD,South Glos Users in South Glos Homes,Permanent Nursing,Gracefields Nursing Home,832.00, 07-Jun-2016
825,Revenue,CAHD,South Glos Users in South Glos Homes,Permanent Nursing,Gracefields Nursing Home,1008.00, 07-Jun-2016
826,Revenue,CAHD,South Glos Users in South Glos Homes,Permanent Nursing,Gracefields Nursing Home,1504.00, 07-Jun-2016
827,Revenue,CAHD,South Glos Users in South Glos Homes,Permanent Nursing,Gracefields Nursing Home,832.00, 07-Jun-2016
828,Revenue,CAHD,South Glos Users in South Glos Homes,Permanent Nursing,Gracefields Nursing Home,1456.00, 07-Jun-2016
829,Revenue,CAHD,South Glos Users in South Glos Homes,Permanent Nursing,Gracefields Nursing Home,1168.00, 07-Jun-2016
830,Revenue,CAHD,South Glos Users in South Glos Homes,Permanent Nursing,Gracefields Nursing Home,832.00, 07-Jun-2016
831,Revenue,CAHD,Bed Purchasing - South,Permanent Nursing,Gracefields Nursing Home,1620.96, 07-Jun-2016
832,Revenue,CAHD,South Glos Users in South Glos Homes,Permanent Nursing,Gracefields Nursing Home,1632.00, 07-Jun-2016
833,Revenue,CAHD,South Glos Users in South Glos Homes,Permanent Nursing,Gracefields Nursing Home,832.00, 07-Jun-2016
834,Revenue,CAHD,Bed Purchasing - Southmead Hospital,Permanent Nursing,Gracefields Nursing Home,1558.00, 07-Jun-2016
835,Revenue,CAHD,Bed Purchasing - Southmead Hospital,Permanent Residential,Granada House Residential Home,1053.96, 07-Jun-2016
836,Revenue,CAHD,Bed Purchasing - North,Permanent Residential,Greensleeves,1358.08, 07-Jun-2016
837,Revenue,CAHD,Bed Purchasing - South,Permanent Residential,Grove Care,1905.76, 07-Jun-2016
838,Revenue,CAHD,Bed Purchasing - South,Permanent Residential,Gwendoline House,1426.11, 07-Jun-2016
839,Revenue,CAHD,Bed Purchasing - Southmead Hospital,Permanent Residential,Gwendoline House,1298.24, 07-Jun-2016
840,Revenue,CAHD,Bed Purchasing - South,Permanent Residential,Gwendoline House,1587.28, 07-Jun-2016
841,Revenue,CAHD,Bed Purchasing - South,Permanent Residential,Gwendoline House,968.40, 07-Jun-2016
842,Revenue,CAHD,Bed Purchasing - Southmead Hospital,Permanent Residential,Gwendoline House,1356.00, 07-Jun-2016
843,Revenue,CAHD,Supporting People Programme,Grants to Voluntary Bodies,Habinteg Housing Association,1377.00, 01-Jun-2016
844,Revenue,CAHD,Social Lettings Agency,Fees - General,Individual,16.46, 27-Jun-2016
845,Revenue,CAHD,Social Lettings Agency,Other Supplies & Services,Individual,559.60, 27-Jun-2016
846,Revenue,CAHD,Supporting People Programme,Grants to Voluntary Bodies,Hanover Housing Association,996.16, 01-Jun-2016
847,Revenue,CAHD,Bed Purchasing - South,Permanent Residential,Harefield Hall,1235.16, 07-Jun-2016
848,Revenue,CAHD,Bed Purchasing - South,Permanent Residential,Harefield Hall,1162.36, 07-Jun-2016
849,Revenue,CAHD,Bed Purchasing - South,Permanent Residential,Harefield Hall,966.56, 07-Jun-2016
850,Revenue,CAHD,Bed Purchasing - South,Permanent Residential,Harefield Hall,1586.52, 07-Jun-2016
851,Revenue,CAHD,Bed Purchasing - South,Permanent Residential,Harefield Hall,1057.68, 07-Jun-2016
852,Revenue,CAHD,Bed Purchasing - South,Permanent Residential,Harefield Hall,1372.92, 07-Jun-2016
853,Revenue,CAHD,Bed Purchasing - South,Permanent Residential,Harefield Hall,1921.38, 07-Jun-2016
854,Revenue,CAHD,Bed Purchasing - South,Permanent Residential,Harefield Hall,1280.92, 07-Jun-2016
855,Revenue,CAHD,Bed Purchasing - Southmead Hospital,Permanent Nursing,Hazelwood Gardens Nursing Home,1626.48, 07-Jun-2016
856,Revenue,CAHD,Bed Purchasing - Southmead Hospital,Permanent Residential,Hazelwood Gardens Nursing Home,984.64, 07-Jun-2016
857,Revenue,CAHD,Bed Purchasing - Southmead Hospital,Permanent Nursing,Hc-One Ltd,1660.08, 07-Jun-2016
858,Revenue,CAHD,Bed Purchasing - Southmead Hospital,Permanent Nursing,Hc-One Ltd,1470.56, 07-Jun-2016
859,Revenue,CAHD,Bed Purchasing - North,Permanent Nursing,Hc-One Ltd,1530.64, 07-Jun-2016
860,Revenue,CAHD,Bed Purchasing - South,Permanent Residential,Hc-One Ltd,1519.86, 07-Jun-2016
861,Revenue,CAHD,Bed Purchasing - South,Permanent Residential,Hc-One Ltd,1479.36, 07-Jun-2016
862,Revenue,CAHD,Bed Purchasing - North,Permanent Residential,Hc-One Ltd,1450.80, 07-Jun-2016
863,Revenue,CAHD,Bed Purchasing - North,Permanent Residential,Hc-One Ltd,2112.00, 07-Jun-2016
864,Revenue,CAHD,Bed Purchasing - Southmead Hospital,Permanent Nursing,Hc-One Ltd,1551.04, 07-Jun-2016
865,Revenue,CAHD,Bed Purchasing - Southmead Hospital,Permanent Nursing,Hc-One Ltd,1499.80, 07-Jun-2016
866,Revenue,CAHD,Bed Purchasing - Southmead Hospital,Permanent Nursing,Hc-One Ltd,2005.12, 07-Jun-2016
867,Revenue,CAHD,Bed Purchasing - Southmead Hospital,Permanent Residential,Head Office,1707.12, 07-Jun-2016
868,Revenue,CAHD,Home Care - Elderly - South,Day Care / Social Activities,Headway Bristol,959.40, 01-Jun-2016
869,Revenue,CAHD,Home Care - Elderly - North,Day Care / Social Activities,Headway Bristol,852.80, 01-Jun-2016
870,Revenue,CAHD,Home Care - Elderly - South,Day Care / Social Activities,Headway Bristol,810.16, 08-Jun-2016
871,Revenue,CAHD,Home Care - Elderly - North,Day Care / Social Activities,Headway Bristol,692.90, 08-Jun-2016
872,Revenue,CAHD,Home Care - Elderly - South,Day Care / Social Activities,Headway Bristol,1002.04, 14-Jun-2016
873,Revenue,CAHD,Home Care - Elderly - North,Day Care / Social Activities,Headway Bristol,1108.64, 14-Jun-2016
874,Revenue,CAHD,Home Care - Elderly - South,Day Care / Social Activities,Headway Bristol,1002.04, 30-Jun-2016
875,Revenue,CAHD,Home Care - Elderly - North,Day Care / Social Activities,Headway Bristol,703.56, 30-Jun-2016
876,Revenue,CAHD,Home Care - Elderly - North,Other Small Contracts,Headway Bristol,191.88, 30-Jun-2016
877,Revenue,CAHD,Home Care - Elderly - South,Other Small Contracts,Helping Hands Homecare,1672.32, 03-Jun-2016
878,Revenue,CAHD,Home Care - Elderly - North,Day Care / Social Activities,Helping Hands Homecare,172.86, 03-Jun-2016
879,Revenue,CAHD,Home Care - Elderly - North,Other Small Contracts,Helping Hands Homecare,2070.30, 03-Jun-2016
880,Revenue,CAHD,Day Care - North,Day Care / Social Activities,Helping Hands Homecare,20.10, 03-Jun-2016
881,Revenue,CAHD,Home Care - Elderly - South,Other Small Contracts,Helping Hands Homecare,1680.36, 17-Jun-2016
882,Revenue,CAHD,Home Care - Elderly - North,Day Care / Social Activities,Helping Hands Homecare,209.04, 17-Jun-2016
883,Revenue,CAHD,Home Care - Elderly - North,Other Small Contracts,Helping Hands Homecare,2150.70, 17-Jun-2016
884,Revenue,CAHD,Day Care - North,Day Care / Social Activities,Helping Hands Homecare,64.32, 17-Jun-2016
885,Revenue,CAHD,Home Care - Elderly - South,Other Small Contracts,Helping Hands Homecare,1680.36, 17-Jun-2016
886,Revenue,CAHD,Home Care - Elderly - North,Day Care / Social Activities,Helping Hands Homecare,168.84, 17-Jun-2016
887,Revenue,CAHD,Home Care - Elderly - North,Other Small Contracts,Helping Hands Homecare,2118.54, 17-Jun-2016
888,Revenue,CAHD,Day Care - North,Day Care / Social Activities,Helping Hands Homecare,56.28, 17-Jun-2016
889,Revenue,CAHD,Home Care - Elderly - South,Other Small Contracts,Helping Hands Homecare,1648.20, 17-Jun-2016
890,Revenue,CAHD,Home Care - Elderly - North,Day Care / Social Activities,Helping Hands Homecare,209.04, 17-Jun-2016
891,Revenue,CAHD,Home Care - Elderly - North,Other Small Contracts,Helping Hands Homecare,2315.52, 17-Jun-2016
892,Revenue,CAHD,Day Care - North,Day Care / Social Activities,Helping Hands Homecare,28.14, 17-Jun-2016
893,Revenue,CAHD,Home Care - Elderly - South,Other Small Contracts,Helping Hands Homecare,1724.58, 24-Jun-2016
894,Revenue,CAHD,Home Care - Elderly - North,Day Care / Social Activities,Helping Hands Homecare,213.06, 24-Jun-2016
895,Revenue,CAHD,Home Care - Elderly - North,Other Small Contracts,Helping Hands Homecare,2030.10, 24-Jun-2016
896,Revenue,CAHD,Day Care - North,Day Care / Social Activities,Helping Hands Homecare,40.20, 24-Jun-2016
897,Revenue,CAHD,S117 Placements PCT,Permanent Residential,Hesley Hall,18656.52, 07-Jun-2016
898,Revenue,CAHD,Bed Purchasing - Southmead Hospital,Permanent Residential,Highfield House,2121.00, 07-Jun-2016
899,Revenue,CAHD,Bed Purchasing - Southmead Hospital,Permanent Residential,Highgate Studios,1193.72, 07-Jun-2016
900,Revenue,CAHD,Bed Purchasing - North,Permanent Residential,Holmleigh Care Homes Ltd,4086.12, 07-Jun-2016
901,Revenue,CAHD,Bed Purchasing - South,Permanent Residential,Holmleigh Care Homes Ltd,4318.00, 07-Jun-2016
902,Revenue,CAHD,Jointly Funded H&SC Packages,Permanent Residential,Holmleigh Care Homes Ltd,836.48, 07-Jun-2016
903,Revenue,CAHD,Bed Purchasing - North,Permanent Residential,Home Farm Trust Ltd  5-6 Brook Office Pa,2726.52, 07-Jun-2016
904,Revenue,CAHD,Bed Purchasing - South,Permanent Residential,Home Farm Trust Ltd  5-6 Brook Office Pa,5242.64, 07-Jun-2016
905,Revenue,CAHD,Bed Purchasing - North,Permanent Residential,Home Farm Trust Ltd  5-6 Brook Office Pa,3436.96, 07-Jun-2016
906,Revenue,CAHD,Bed Purchasing - South,Permanent Residential,Home Farm Trust Ltd  5-6 Brook Office Pa,5687.60, 07-Jun-2016
907,Revenue,CAHD,18-25 Year Olds,Permanent Residential,Home From Home Care Ltd,9215.16, 07-Jun-2016
908,Revenue,CAHD,Home Care - Elderly - South,Other Small Contracts,Homecare 4U,382.58, 02-Jun-2016
909,Revenue,CAHD,Home Care - Elderly - North,Other Small Contracts,Homecare 4U,659.34, 02-Jun-2016
910,Revenue,CAHD,Home Care - Elderly - South,Other Small Contracts,Homecare 4U,390.72, 06-Jun-2016
911,Revenue,CAHD,Home Care - Elderly - North,Other Small Contracts,Homecare 4U,602.36, 06-Jun-2016
912,Revenue,CAHD,Home Care - Elderly - South,Other Small Contracts,Homecare 4U,398.86, 06-Jun-2016
913,Revenue,CAHD,Home Care - Elderly - North,Other Small Contracts,Homecare 4U,504.68, 06-Jun-2016
914,Revenue,CAHD,Home Care - Elderly - South,Other Small Contracts,Homecare 4U,394.79, 14-Jun-2016
915,Revenue,CAHD,Home Care - Elderly - North,Other Small Contracts,Homecare 4U,683.76, 14-Jun-2016
916,Revenue,CAHD,Bed Purchasing - North,Permanent Residential,Homes Caring For Autism Ltd  Churchill H,8071.00, 07-Jun-2016
917,Revenue,CAHD,Jointly Funded H&SC Packages,Permanent Residential,Homes Caring For Autism Ltd  Churchill H,2090.04, 07-Jun-2016
918,Revenue,CAHD,18-25 Year Olds,Permanent Residential,Homes Caring For Autism Ltd  Churchill H,5691.32, 07-Jun-2016
919,Revenue,CAHD,Jointly Funded H&SC Packages,Permanent Residential,Homes Caring For Autism Ltd  Churchill H,7535.48, 07-Jun-2016
920,Revenue,CAHD,Bed Purchasing - Southmead Hospital,Permanent Nursing,Horfield Care Limited,1493.76, 17-Jun-2016
921,Revenue,CAHD,Bed Purchasing - Southmead Hospital,Permanent Nursing,Horfield Care Limited,1877.05, 17-Jun-2016
922,Revenue,CAHD,Bed Purchasing - Southmead Hospital,Permanent Nursing,Horfield Care Limited,1381.58, 17-Jun-2016
923,Revenue,CAHD,Bed Purchasing - South,Permanent Nursing,Horfield Care Limited,1379.37, 17-Jun-2016
924,Revenue,CAHD,Bed Purchasing - Southmead Hospital,Respite Planned - Nursing,Horfield Care Limited,748.57, 17-Jun-2016
925,Revenue,CAHD,Bed Purchasing - South,Respite Emergency - Nursing,Horfield Care Limited,1179.90, 17-Jun-2016
926,Revenue,CAHD,Supporting People Programme,Grants to Voluntary Bodies,Housing 21,631.50, 01-Jun-2016
927,Revenue,CAHD,Supporting People Programme,Grants to Voluntary Bodies,Housing 21,957.66, 01-Jun-2016
928,Revenue,CAHD,Home Care - Elderly - North,Private & Voluntary Home Care,Housing 21,40371.16, 10-Jun-2016
929,Revenue,CAHD,Home Care - Elderly - South,Private & Voluntary Home Care,Housing 21,25849.77, 01-Jun-2016
930,Revenue,CAHD,Information Systems - Software,Software Support & Maintenance,Infosol Limited,3133.74, 10-Jun-2016
931,Revenue,CAHD,Social Lettings Agency,Fees - General,Individual,12.22, 10-Jun-2016
932,Revenue,CAHD,Social Lettings Agency,Other Supplies & Services,Individual,690.32, 10-Jun-2016
933,Revenue,CAHD,Social Lettings Agency,Fees - General,Individual,10.53, 01-Jun-2016
934,Revenue,CAHD,Social Lettings Agency,Other Supplies & Services,Individual,595.11, 01-Jun-2016
935,Revenue,CAHD,Training - Adult Services,Training Expenses,Jo Williams,595.00, 09-Jun-2016
936,Revenue,CAHD,Bed Purchasing - South,Permanent Residential,Jonen House,3705.12, 07-Jun-2016
937,Revenue,CAHD,Home Care - Elderly - South,Supported Living,Julia Simone- Supp. Ind.,1194.40, 07-Jun-2016
938,Revenue,CAHD,Younger MH non-res purchasing,Supported Living,Julia Simone- Supp. Ind.,1194.40, 07-Jun-2016
939,Revenue,CAHD,Younger MH non-res purchasing,Supported Living,Julia Simone- Supp. Ind.,1194.40, 07-Jun-2016
940,Revenue,CAHD,Home Care - Elderly - North,Supported Living,Julia Simone- Supp. Ind.,1228.80, 07-Jun-2016
941,Revenue,CAHD,Younger MH non-res purchasing,Supported Living,Julia Simone- Supp. Ind.,1194.24, 07-Jun-2016
942,Revenue,CAHD,Younger MH non-res purchasing,Supported Living,Julia Simone- Supp. Ind.,1194.36, 07-Jun-2016
943,Revenue,CAHD,Bed Purchasing - South,Permanent Residential,Julia Simone- Supp. Ind.,4063.20, 07-Jun-2016
944,Revenue,CAHD,Bed purchasing -S28A  Under 65 - North,Permanent Residential,Julia Simone- Supp. Ind.,3585.76, 07-Jun-2016
945,Revenue,CAHD,Home Care - Elderly - South,Other Small Contracts,Kensington Community Care,3131.71, 06-Jun-2016
946,Revenue,CAHD,Home Care - Elderly - North,Other Small Contracts,Kensington Community Care,4883.46, 06-Jun-2016
947,Revenue,CAHD,Home Care - Elderly - South,Other Small Contracts,Kensington Community Care,3285.32, 15-Jun-2016
948,Revenue,CAHD,Home Care - Elderly - North,Other Small Contracts,Kensington Community Care,5390.62, 15-Jun-2016
949,Revenue,CAHD,Home Care - Elderly - South,Other Small Contracts,Kensington Community Care,3294.09, 30-Jun-2016
950,Revenue,CAHD,Home Care - Elderly - North,Other Small Contracts,Kensington Community Care,4781.21, 30-Jun-2016
951,Revenue,CAHD,Woodleaze,Premises Maintenance by Contractor,Kensington Systems LTD,780.00, 15-Jun-2016
952,Revenue,CAHD,Bed Purchasing - Southmead Hospital,Permanent Residential,Kenver House Residential Home,1685.76, 07-Jun-2016
953,Revenue,CAHD,Bed Purchasing - Southmead Hospital,Permanent Residential,Kenver House Residential Home,1697.28, 07-Jun-2016
954,Revenue,CAHD,Bed Purchasing - South,Respite Emergency - Residential,Kenver House Residential Home,1821.00, 07-Jun-2016
955,Revenue,CAHD,Bed Purchasing - South,Respite Emergency - Residential,Kenver House Residential Home,878.94, 07-Jun-2016
956,Revenue,CAHD,Bed Purchasing - Southmead Hospital,Respite Planned - Residential,Kenver House Residential Home,1910.45, 07-Jun-2016
957,Revenue,CAHD,Bed Purchasing - Southmead Hospital,Permanent Residential,Kenver House Residential Home,1908.68, 07-Jun-2016
958,Revenue,CAHD,Bed Purchasing - Southmead Hospital,Permanent Residential,Kenver House Residential Home,818.00, 07-Jun-2016
959,Revenue,CAHD,Bed Purchasing - South,Permanent Residential,Kenver House Residential Home,1407.28, 07-Jun-2016
960,Revenue,CAHD,Bed Purchasing - Southmead Hospital,Permanent Residential,Kenver House Residential Home,636.04, 07-Jun-2016
961,Revenue,CAHD,Bed Purchasing - South,Permanent Residential,Kenver House Residential Home,1697.28, 07-Jun-2016
962,Revenue,CAHD,Bed Purchasing - North,Permanent Residential,Kenver House Residential Home,1566.76, 07-Jun-2016
963,Revenue,CAHD,Bed Purchasing - Southmead Hospital,Permanent Residential,Kenver House Residential Home,1784.68, 07-Jun-2016
964,Revenue,CAHD,Bed purchasing - Elderly S117 - South,Permanent Residential,Kenver House Residential Home,2286.28, 07-Jun-2016
965,Revenue,CAHD,Bed Purchasing - North,Respite Planned - Residential,Kenver House Residential Home,1476.26, 07-Jun-2016
966,Revenue,CAHD,Bed Purchasing - North,Respite Planned - Residential,Kenver House Residential Home,955.22, 07-Jun-2016
967,Revenue,CAHD,Bed Purchasing - Southmead Hospital,Permanent Residential,Kenver House Residential Home,1697.20, 07-Jun-2016
968,Revenue,CAHD,Bed Purchasing - South,Permanent Residential,Kenver House Residential Home,1729.28, 07-Jun-2016
969,Revenue,CAHD,Supporting People Programme,Grants to Voluntary Bodies,Keyring Living Support Networks,2988.58, 01-Jun-2016
970,Revenue,CAHD,Learning Difficulties Development Fund,Other Supplies & Services,Kids,4439.25, 29-Jun-2016
971,Revenue,CAHD,Supporting People Programme,Grants to Voluntary Bodies,Kingswood Young Homeless Project,17359.58, 01-Jun-2016
972,Revenue,CAHD,Planning and Partnerships Team,Furniture & Fittings Loose,Kinnarps UK Limited (Invoice Account),434.20, 14-Jun-2016
973,Revenue,CAHD,Bed Purchasing - North,Permanent Residential,Kisimul Group,11674.88, 07-Jun-2016
974,Revenue,CAHD,Supporting People Programme,Grants to Voluntary Bodies,Knightstone Housing Association Limited,865.25, 01-Jun-2016
975,Revenue,CAHD,Supporting People Programme,Grants to Voluntary Bodies,Knightstone Housing Association Limited,2544.33, 01-Jun-2016
976,Revenue,CAHD,Supporting People Programme,Grants to Voluntary Bodies,Knightstone Housing Association Limited,2543.75, 01-Jun-2016
977,Revenue,CAHD,Supporting People Programme,Grants to Voluntary Bodies,Knightstone Housing Association Limited,1833.66, 01-Jun-2016
978,Revenue,CAHD,Supporting People Programme,Grants to Voluntary Bodies,Knightstone Housing Association Limited,7789.00, 01-Jun-2016
979,Revenue,CAHD,Supporting People Programme,Grants to Voluntary Bodies,Knightstone Housing Association Limited,8747.50, 01-Jun-2016
980,Revenue,CAHD,Supporting People Programme,Grants to Voluntary Bodies,Knightstone Housing Association Limited,13845.33, 01-Jun-2016
981,Revenue,CAHD,Home Care - Elderly - South,Other Small Contracts,Kumari Care Limited,1933.39, 02-Jun-2016
982,Revenue,CAHD,Home Care - Elderly - North,Other Small Contracts,Kumari Care Limited,847.38, 02-Jun-2016
983,Revenue,CAHD,Home Care - Elderly - South,Other Small Contracts,Kumari Care Limited,1857.96, 07-Jun-2016
984,Revenue,CAHD,Home Care - Elderly - North,Other Small Contracts,Kumari Care Limited,847.31, 07-Jun-2016
985,Revenue,CAHD,Home Care - Elderly - South,Other Small Contracts,Kumari Care Limited,1945.30, 30-Jun-2016
986,Revenue,CAHD,Home Care - Elderly - North,Other Small Contracts,Kumari Care Limited,847.31, 30-Jun-2016
987,Revenue,CAHD,Bed Purchasing - North,Permanent Nursing,Larchfield Care Home,6058.00, 07-Jun-2016
988,Revenue,CAHD,Bed purchasing - Elderly S117 - South,Permanent Nursing,Lavender Lodge Limited,8518.84, 07-Jun-2016
989,Revenue,CAHD,Tenancy Start Up Scheme,Other Supplies & Services,Individual,1400.00, 14-Jun-2016
990,Revenue,CAHD,Bed Purchasing - North,Permanent Residential,Leonard Cheshire  National Account Centr,4299.78, 07-Jun-2016
991,Revenue,CAHD,Bed Purchasing - North,Permanent Residential,Leonard Cheshire  National Account Centr,2866.52, 07-Jun-2016
992,Revenue,CAHD,Bed Purchasing - South,Permanent Residential,Leonard Cheshire  National Account Centr,3426.44, 07-Jun-2016
993,Revenue,CAHD,Bed Purchasing - North,Permanent Nursing,Leonard Cheshire  National Account Centr,3612.48, 07-Jun-2016
994,Revenue,CAHD,Bed Purchasing - North,Permanent Nursing,Leonard Cheshire  National Account Centr,2901.80, 07-Jun-2016
995,Revenue,CAHD,18-25 Year Olds,Permanent Residential,Leonard Cheshire  National Account Centr,3281.32, 07-Jun-2016
996,Revenue,CAHD,Bed Purchasing - North,Permanent Residential,Leonard Cheshire  National Account Centr,6111.20, 07-Jun-2016
997,Revenue,CAHD,Bed Purchasing - North,Permanent Residential,Leonard Cheshire  National Account Centr,6109.60, 07-Jun-2016
998,Revenue,CAHD,Bed Purchasing - South,Permanent Residential,Leonard Cheshire  National Account Centr,4595.20, 07-Jun-2016
999,Revenue,CAHD,Bed Purchasing - North,Permanent Nursing,Leonard Cheshire  National Account Centr,2957.28, 07-Jun-2016
1000,Revenue,CAHD,Bed Purchasing - North,Permanent Nursing,Leonard Cheshire  National Account Centr,3890.96, 07-Jun-2016
1001,Revenue,CAHD,Bed Purchasing - North,Permanent Residential,Leonard Cheshire  National Account Centr,3010.08, 07-Jun-2016
1002,Revenue,CAHD,Bed Purchasing - North,Permanent Nursing,Leonard Cheshire  National Account Centr,3206.68, 07-Jun-2016
1003,Revenue,CAHD,Bed Purchasing - North,Permanent Nursing,Leonard Cheshire  National Account Centr,5740.64, 07-Jun-2016
1004,Revenue,CAHD,Bed Purchasing - South,Permanent Nursing,Leonard Cheshire  National Account Centr,2986.36, 07-Jun-2016
1005,Revenue,CAHD,Bed Purchasing - Southmead Hospital,Permanent Nursing,Leonard Cheshire  National Account Centr,3126.84, 07-Jun-2016
1006,Revenue,CAHD,South Glos Users in all other LA Homes,Permanent Nursing,Leonard Cheshire  National Account Centr,616.56, 07-Jun-2016
1007,Revenue,CAHD,Bed Purchasing - South,Respite Emergency - Residential,Leonard Cheshire  National Account Centr,4102.12, 07-Jun-2016
1008,Revenue,CAHD,Bed Purchasing - South,Respite Emergency - Residential,Leonard Cheshire  National Account Centr,1426.82, 07-Jun-2016
1009,Revenue,CAHD,Bed Purchasing - North,Permanent Nursing,Leonard Cheshire  National Account Centr,3350.72, 07-Jun-2016
1010,Revenue,CAHD,Bed Purchasing - North,Permanent Nursing,Leonard Cheshire  National Account Centr,10387.70, 07-Jun-2016
1011,Revenue,CAHD,Section 117 Placements MH Younger,Permanent Residential,Little Croft,2229.92, 07-Jun-2016
1012,Revenue,CAHD,Bed Purchasing - Southmead Hospital,Permanent Residential,Little Croft,1095.84, 07-Jun-2016
1013,Revenue,CAHD,Bed Purchasing - Southmead Hospital,Permanent Residential,Little Croft,1277.20, 07-Jun-2016
1014,Revenue,CAHD,Bed Purchasing - North,Permanent Residential,Little Croft,1837.32, 07-Jun-2016
1015,Revenue,CAHD,Bed Purchasing - North,Permanent Residential,Little Croft,1224.88, 07-Jun-2016
1016,Revenue,CAHD,Bed Purchasing - South,Permanent Residential,Little Croft,2256.60, 07-Jun-2016
1017,Revenue,CAHD,Bed Purchasing - South,Permanent Residential,Little Croft,3212.74, 07-Jun-2016
1018,Revenue,CAHD,Bed Purchasing - Southmead Hospital,Permanent Residential,Little Croft,1314.88, 07-Jun-2016
1019,Revenue,CAHD,Bed Purchasing - Southmead Hospital,Permanent Residential,Little Croft,1285.20, 07-Jun-2016
1020,Revenue,CAHD,Bed Purchasing - South,Permanent Residential,Little Croft,1817.12, 07-Jun-2016
1021,Revenue,CAHD,Bed Purchasing - North,Permanent Residential,Little Croft,1233.88, 07-Jun-2016
1022,Revenue,CAHD,Bed Purchasing - Southmead Hospital,Permanent Residential,Little Croft,2229.92, 07-Jun-2016
1023,Revenue,CAHD,Bed Purchasing - South,Permanent Residential,Little Croft,1870.18, 07-Jun-2016
1024,Revenue,CAHD,Bed Purchasing - South,Permanent Residential,Little Croft,1277.20, 07-Jun-2016
1025,Revenue,CAHD,Bed Purchasing - Southmead Hospital,Permanent Residential,Little Croft,1772.56, 07-Jun-2016
1026,Revenue,CAHD,Bed Purchasing - Southmead Hospital,Permanent Residential,Little Croft,1154.84, 07-Jun-2016
1027,Revenue,CAHD,Bed Purchasing - South,Respite Emergency - Residential,Little Croft,2500.00, 07-Jun-2016
1028,Revenue,CAHD,Bed Purchasing - South,Respite Emergency - Residential,Little Croft,982.14, 07-Jun-2016
1029,Revenue,CAHD,Bed Purchasing - Southmead Hospital,Permanent Residential,Little Croft,1487.68, 07-Jun-2016
1030,Revenue,CAHD,Bed Purchasing - South,Permanent Residential,Little Croft,1124.00, 07-Jun-2016
1031,Revenue,CAHD,Bed Purchasing - Southmead Hospital,Permanent Residential,Little Croft,1249.56, 07-Jun-2016
1032,Revenue,CAHD,Bed Purchasing - North,Permanent Residential,Little Croft,1086.20, 07-Jun-2016
1033,Revenue,CAHD,Bed Purchasing - South,Permanent Residential,Little Croft,1453.20, 07-Jun-2016
1034,Revenue,CAHD,Bed Purchasing - South,Permanent Residential,Little Croft,1442.84, 07-Jun-2016
1035,Revenue,CAHD,Bed Purchasing - Southmead Hospital,Permanent Residential,Little Croft,1277.20, 07-Jun-2016
1036,Revenue,CAHD,Bed Purchasing - Southmead Hospital,Permanent Residential,Little Croft,1277.20, 07-Jun-2016
1037,Revenue,CAHD,Bed Purchasing - South,Permanent Residential,Little Croft,1451.68, 07-Jun-2016
1038,Revenue,CAHD,Bed Purchasing - North,Permanent Residential,Littlecroft Residential Homes  Longcroft,6755.90, 07-Jun-2016
1039,Revenue,CAHD,18-25 Year Olds,Supported Living,Lloyds TSB Commercial Finance Limited,127.92, 06-Jun-2016
1040,Revenue,CAHD,Home Care - Elderly - South,Day Care / Social Activities,Lloyds TSB Commercial Finance Limited,5249.23, 06-Jun-2016
1041,Revenue,CAHD,Home Care - Elderly - South,Other Small Contracts,Lloyds TSB Commercial Finance Limited,5445.12, 06-Jun-2016
1042,Revenue,CAHD,Home Care - Elderly - South,Supported Living,Lloyds TSB Commercial Finance Limited,8180.91, 06-Jun-2016
1043,Revenue,CAHD,Home Care - Elderly - North,Day Care / Social Activities,Lloyds TSB Commercial Finance Limited,198.24, 06-Jun-2016
1044,Revenue,CAHD,Home Care - Elderly - North,Supported Living,Lloyds TSB Commercial Finance Limited,1408.33, 06-Jun-2016
1045,Revenue,CAHD,Younger MH non-res purchasing,Other Small Contracts,Lloyds TSB Commercial Finance Limited,10772.12, 06-Jun-2016
1046,Revenue,CAHD,Younger MH non-res purchasing,Supported Living,Lloyds TSB Commercial Finance Limited,106.60, 06-Jun-2016
1047,Revenue,CAHD,18-25 Year Olds,Supported Living,Lloyds TSB Commercial Finance Limited,2077.32, 07-Jun-2016
1048,Revenue,CAHD,Home Care - Elderly - South,Day Care / Social Activities,Lloyds TSB Commercial Finance Limited,5079.90, 07-Jun-2016
1049,Revenue,CAHD,Home Care - Elderly - South,Other Small Contracts,Lloyds TSB Commercial Finance Limited,5440.99, 07-Jun-2016
1050,Revenue,CAHD,Home Care - Elderly - South,Supported Living,Lloyds TSB Commercial Finance Limited,8594.82, 07-Jun-2016
1051,Revenue,CAHD,Home Care - Elderly - North,Day Care / Social Activities,Lloyds TSB Commercial Finance Limited,198.24, 07-Jun-2016
1052,Revenue,CAHD,Home Care - Elderly - North,Supported Living,Lloyds TSB Commercial Finance Limited,1738.73, 07-Jun-2016
1053,Revenue,CAHD,Younger MH non-res purchasing,Other Small Contracts,Lloyds TSB Commercial Finance Limited,10808.43, 07-Jun-2016
1054,Revenue,CAHD,Younger MH non-res purchasing,Supported Living,Lloyds TSB Commercial Finance Limited,106.60, 07-Jun-2016
1055,Revenue,CAHD,18-25 Year Olds,Supported Living,Lloyds TSB Commercial Finance Limited,2878.40, 07-Jun-2016
1056,Revenue,CAHD,Home Care - Elderly - South,Day Care / Social Activities,Lloyds TSB Commercial Finance Limited,5245.10, 07-Jun-2016
1057,Revenue,CAHD,Home Care - Elderly - South,Other Small Contracts,Lloyds TSB Commercial Finance Limited,5445.12, 07-Jun-2016
1058,Revenue,CAHD,Home Care - Elderly - South,Supported Living,Lloyds TSB Commercial Finance Limited,8214.27, 07-Jun-2016
1059,Revenue,CAHD,Home Care - Elderly - North,Day Care / Social Activities,Lloyds TSB Commercial Finance Limited,198.24, 07-Jun-2016
1060,Revenue,CAHD,Home Care - Elderly - North,Supported Living,Lloyds TSB Commercial Finance Limited,1602.44, 07-Jun-2016
1061,Revenue,CAHD,Younger MH non-res purchasing,Other Small Contracts,Lloyds TSB Commercial Finance Limited,10825.18, 07-Jun-2016
1062,Revenue,CAHD,Younger MH non-res purchasing,Supported Living,Lloyds TSB Commercial Finance Limited,106.60, 07-Jun-2016
1063,Revenue,CAHD,18-25 Year Olds,Supported Living,Lloyds TSB Commercial Finance Limited,2878.40, 30-Jun-2016
1064,Revenue,CAHD,Home Care - Elderly - South,Day Care / Social Activities,Lloyds TSB Commercial Finance Limited,5302.92, 30-Jun-2016
1065,Revenue,CAHD,Home Care - Elderly - South,Other Small Contracts,Lloyds TSB Commercial Finance Limited,5570.13, 30-Jun-2016
1066,Revenue,CAHD,Home Care - Elderly - South,Supported Living,Lloyds TSB Commercial Finance Limited,7823.42, 30-Jun-2016
1067,Revenue,CAHD,Home Care - Elderly - North,Day Care / Social Activities,Lloyds TSB Commercial Finance Limited,198.24, 30-Jun-2016
1068,Revenue,CAHD,Home Care - Elderly - North,Supported Living,Lloyds TSB Commercial Finance Limited,1850.24, 30-Jun-2016
1069,Revenue,CAHD,Younger MH non-res purchasing,Other Small Contracts,Lloyds TSB Commercial Finance Limited,10293.15, 30-Jun-2016
1070,Revenue,CAHD,Younger MH non-res purchasing,Supported Living,Lloyds TSB Commercial Finance Limited,106.60, 30-Jun-2016
1071,Revenue,CAHD,18-25 Year Olds,Supported Living,Lloyds TSB Commercial Finance Limited,2878.40, 30-Jun-2016
1072,Revenue,CAHD,Home Care - Elderly - South,Day Care / Social Activities,Lloyds TSB Commercial Finance Limited,5298.79, 30-Jun-2016
1073,Revenue,CAHD,Home Care - Elderly - South,Other Small Contracts,Lloyds TSB Commercial Finance Limited,5907.30, 30-Jun-2016
1074,Revenue,CAHD,Home Care - Elderly - South,Supported Living,Lloyds TSB Commercial Finance Limited,8172.01, 30-Jun-2016
1075,Revenue,CAHD,Home Care - Elderly - North,Day Care / Social Activities,Lloyds TSB Commercial Finance Limited,198.24, 30-Jun-2016
1076,Revenue,CAHD,Home Care - Elderly - North,Supported Living,Lloyds TSB Commercial Finance Limited,1482.67, 30-Jun-2016
1077,Revenue,CAHD,Younger MH non-res purchasing,Other Small Contracts,Lloyds TSB Commercial Finance Limited,10781.66, 30-Jun-2016
1078,Revenue,CAHD,Access Team,Care Management/Assessment Staff Pay,Lloyds TSB Commercial Finance Limited,1870.66, 10-Jun-2016
1079,Revenue,CAHD,Access Team,Care Management/Assessment Staff Pay,Lloyds TSB Commercial Finance Limited,1881.24, 13-Jun-2016
1080,Revenue,CAHD,Access Team,Care Management/Assessment Staff Pay,Lloyds TSB Commercial Finance Limited,1729.31, 13-Jun-2016
1081,Revenue,CAHD,Home Care - Elderly - North,Day Care / Social Activities,Lower Kilcott,1481.84, 07-Jun-2016
1082,Revenue,CAHD,Home Care - Elderly - North,Day Care / Social Activities,Lower Kilcott,710.16, 07-Jun-2016
1083,Revenue,CAHD,Home Care - Elderly - North,Day Care / Social Activities,Lower Kilcott,566.68, 07-Jun-2016
1084,Revenue,CAHD,Social Lettings Agency,Fees - General,Individual,13.60, 21-Jun-2016
1085,Revenue,CAHD,Social Lettings Agency,Other Supplies & Services,Individual,768.40, 21-Jun-2016
1086,Revenue,CAHD,Bed Purchasing - Southmead Hospital,Permanent Nursing,Majestic 3 Limited,1017.72, 07-Jun-2016
1087,Revenue,CAHD,Bed Purchasing - South,Permanent Residential,Manor Cottage,1890.60, 07-Jun-2016
1088,Revenue,CAHD,Bed Purchasing - Southmead Hospital,Permanent Residential,Manor Cottage,1277.20, 07-Jun-2016
1089,Revenue,CAHD,Bed Purchasing - South,Permanent Residential,Manor Cottage,1877.20, 07-Jun-2016
1090,Revenue,CAHD,Bed Purchasing - South,Permanent Residential,Manor Cottage,1828.76, 07-Jun-2016
1091,Revenue,CAHD,Bed Purchasing - Southmead Hospital,Permanent Residential,Manor Cottage,1051.84, 07-Jun-2016
1092,Revenue,CAHD,Bed Purchasing - South,Permanent Residential,Manor Cottage,1506.64, 07-Jun-2016
1093,Revenue,CAHD,Bed Purchasing - South,Permanent Residential,Manor Cottage,1526.28, 07-Jun-2016
1094,Revenue,CAHD,Bed Purchasing - North,Permanent Residential,Manton Hall Residential Home,1684.66, 07-Jun-2016
1095,Revenue,CAHD,Younger MH non-res purchasing,Supported Living,Maples Community Care Limited,1197.60, 07-Jun-2016
1096,Revenue,CAHD,Younger MH non-res purchasing,Supported Living,Maples Community Care Limited,1419.04, 07-Jun-2016
1097,Revenue,CAHD,Home Care - Elderly - South,Supported Living,Maples Community Care Limited,4302.86, 07-Jun-2016
1098,Revenue,CAHD,Home Care - Elderly - South,Supported Living,Maples Community Care Limited,1216.50, 07-Jun-2016
1099,Revenue,CAHD,Home Care - Elderly - South,Supported Living,Maples Community Care Limited,1419.04, 07-Jun-2016
1100,Revenue,CAHD,Home Care - Elderly - South,Supported Living,Maples Community Care Limited,1419.04, 07-Jun-2016
1101,Revenue,CAHD,Younger MH non-res purchasing,Supported Living,Maples Community Care Limited,1419.04, 07-Jun-2016
1102,Revenue,CAHD,Younger MH non-res purchasing,Supported Living,Maples Community Care Limited,1419.04, 07-Jun-2016
1103,Revenue,CAHD,Younger MH non-res purchasing,Supported Living,Maples Community Care Limited,1419.04, 07-Jun-2016
1104,Revenue,CAHD,Social Lettings Agency,Fees - General,Individual,12.22, 20-Jun-2016
1105,Revenue,CAHD,Social Lettings Agency,Other Supplies & Services,Individual,690.32, 20-Jun-2016
1106,Revenue,CAHD,Bed Purchasing - South,Permanent Residential,Marsden Healthcare Ltd,1298.00, 07-Jun-2016
1107,Revenue,CAHD,Bed Purchasing - South,Permanent Residential,Marsden Healthcare Ltd,1548.28, 07-Jun-2016
1108,Revenue,CAHD,Bed Purchasing - South,Permanent Nursing,Meadow Care Home,1649.48, 07-Jun-2016
1109,Revenue,CAHD,Bed Purchasing - Elderly S117- North,Permanent Nursing,Meadow Care Home,3851.68, 07-Jun-2016
1110,Revenue,CAHD,Bed purchasing - Elderly S117 - South,Permanent Nursing,Meadow Care Home,2452.88, 07-Jun-2016
1111,Revenue,CAHD,Bed Purchasing - Elderly S117- North,Permanent Nursing,Meadow Care Home,4865.28, 07-Jun-2016
1112,Revenue,CAHD,Home Care - Elderly - South,Day Care / Social Activities,Mears Care,176.00, 06-Jun-2016
1113,Revenue,CAHD,Home Care - Elderly - South,Other Small Contracts,Mears Care,4820.00, 06-Jun-2016
1114,Revenue,CAHD,Home Care - Elderly - North,Other Small Contracts,Mears Care,4880.00, 06-Jun-2016
1115,Revenue,CAHD,Home Care - Elderly - South,Day Care / Social Activities,Mears Care,176.00, 07-Jun-2016
1116,Revenue,CAHD,Home Care - Elderly - South,Other Small Contracts,Mears Care,4732.00, 07-Jun-2016
1117,Revenue,CAHD,Home Care - Elderly - North,Other Small Contracts,Mears Care,4912.00, 07-Jun-2016
1118,Revenue,CAHD,Home Care - Elderly - South,Day Care / Social Activities,Mears Care,176.00, 07-Jun-2016
1119,Revenue,CAHD,Home Care - Elderly - South,Other Small Contracts,Mears Care,4480.00, 07-Jun-2016
1120,Revenue,CAHD,Home Care - Elderly - North,Other Small Contracts,Mears Care,4772.00, 07-Jun-2016
1121,Revenue,CAHD,Home Care - Elderly - South,Day Care / Social Activities,Mears Care,180.00, 07-Jun-2016
1122,Revenue,CAHD,Home Care - Elderly - South,Other Small Contracts,Mears Care,4444.00, 07-Jun-2016
1123,Revenue,CAHD,Home Care - Elderly - North,Other Small Contracts,Mears Care,4648.00, 07-Jun-2016
1124,Revenue,CAHD,Home Care - Elderly - South,Day Care / Social Activities,Mears Care,172.00, 29-Jun-2016
1125,Revenue,CAHD,Home Care - Elderly - South,Other Small Contracts,Mears Care,4472.00, 29-Jun-2016
1126,Revenue,CAHD,Home Care - Elderly - North,Other Small Contracts,Mears Care,4748.00, 29-Jun-2016
1127,Revenue,CAHD,Home Care - Elderly - South,Private & Voluntary Home Care,Mears Care,49770.25, 28-Jun-2016
1128,Revenue,CAHD,Home Care - Elderly - South,Other Small Contracts,Medacs Home Care,14.36, 13-Jun-2016
1129,Revenue,CAHD,Home Care - Elderly - North,Other Small Contracts,Medacs Home Care,674.92, 13-Jun-2016
1130,Revenue,CAHD,Home Care - Elderly - South,Other Small Contracts,Medacs Home Care,14.36, 15-Jun-2016
1131,Revenue,CAHD,Home Care - Elderly - North,Other Small Contracts,Medacs Home Care,682.10, 15-Jun-2016
1132,Revenue,CAHD,Home Care - Elderly - South,Other Small Contracts,Medacs Home Care,14.36, 22-Jun-2016
1133,Revenue,CAHD,Home Care - Elderly - North,Other Small Contracts,Medacs Home Care,649.79, 22-Jun-2016
1134,Revenue,CAHD,Home Care - Elderly - South,Other Small Contracts,Medacs Home Care,14.36, 29-Jun-2016
1135,Revenue,CAHD,Home Care - Elderly - North,Other Small Contracts,Medacs Home Care,664.15, 29-Jun-2016
1136,Revenue,CAHD,ICES / NRS Contract,Daily Living Equipment,Medequip Assistive Technology Limited,4563.98, 23-Jun-2016
1137,Revenue,CAHD,ICES / NRS Contract,Daily Living Equipment,Medequip Assistive Technology Limited,33958.28, 30-Jun-2016
1138,Revenue,CAHD,ICES / NRS Contract,Daily Living Equipment,Medequip Assistive Technology Limited,75140.85, 30-Jun-2016
1139,Revenue,CAHD,Supporting People Programme,Grants to Voluntary Bodies,Merlin Housing Society,1067.33, 01-Jun-2016
1140,Revenue,CAHD,Supporting People Programme,Grants to Voluntary Bodies,Merlin Housing Society,20687.41, 01-Jun-2016
1141,Revenue,CAHD,Supporting People Programme,Grants to Voluntary Bodies,Merlin Housing Society,2519.33, 01-Jun-2016
1142,Revenue,CAHD,Supporting People Programme,Grants to Voluntary Bodies,Merlin Housing Society,14987.58, 01-Jun-2016
1143,Revenue,CAHD,Home Care - Elderly - South,Supported Living,Milestones - Unit 10,2131.96, 07-Jun-2016
1144,Revenue,CAHD,Home Care - Elderly - South,Supported Living,Milestones - Unit 10,3681.16, 07-Jun-2016
1145,Revenue,CAHD,Home Care - Elderly - North,Supported Living,Milestones - Unit 10,4362.68, 07-Jun-2016
1146,Revenue,CAHD,Home Care - Elderly - South,Supported Living,Milestones - Unit 10,1371.60, 07-Jun-2016
1147,Revenue,CAHD,Home Care - Elderly - South,Supported Living,Milestones - Unit 10,3681.16, 07-Jun-2016
1148,Revenue,CAHD,Home Care - Elderly - North,Supported Living,Milestones - Unit 10,4131.76, 07-Jun-2016
1149,Revenue,CAHD,Home Care - Elderly - South,Supported Living,Milestones - Unit 10,3693.16, 07-Jun-2016
1150,Revenue,CAHD,Home Care - Elderly - South,Supported Living,Milestones - Unit 10,2349.20, 07-Jun-2016
1151,Revenue,CAHD,Home Care - Elderly - North,Supported Living,Milestones - Unit 10,4131.76, 07-Jun-2016
1152,Revenue,CAHD,Home Care - Elderly - South,Supported Living,Milestones - Unit 10,3934.12, 07-Jun-2016
1153,Revenue,CAHD,Supported Living (S28a) North,Supported Living,Milestones - Unit 10,3652.08, 07-Jun-2016
1154,Revenue,CAHD,Supported Living (S28a) North,Supported Living,Milestones - Unit 10,3652.08, 07-Jun-2016
1155,Revenue,CAHD,Home Care - Elderly - South,Supported Living,Milestones - Unit 10,1268.04, 07-Jun-2016
1156,Revenue,CAHD,Supported Living (S28a) South,Supported Living,Milestones - Unit 10,5580.68, 07-Jun-2016
1157,Revenue,CAHD,Home Care - Elderly - South,Supported Living,Milestones - Unit 10,2262.88, 07-Jun-2016
1158,Revenue,CAHD,Supported Living (S28a) South,Supported Living,Milestones - Unit 10,2262.88, 07-Jun-2016
1159,Revenue,CAHD,Home Care - Elderly - North,Supported Living,Milestones - Unit 10,4362.68, 07-Jun-2016
1160,Revenue,CAHD,Home Care - Elderly - South,Supported Living,Milestones - Unit 10,2131.96, 07-Jun-2016
1161,Revenue,CAHD,Supported Living (S28a) North,Supported Living,Milestones - Unit 10,3664.36, 07-Jun-2016
1162,Revenue,CAHD,Supported Living (S28a) South,Supported Living,Milestones - Unit 10,2262.88, 07-Jun-2016
1163,Revenue,CAHD,Supported Living (S28a) South,Supported Living,Milestones - Unit 10,2262.88, 07-Jun-2016
1164,Revenue,CAHD,Home Care - Elderly - North,Supported Living,Milestones - Unit 10,1494.84, 07-Jun-2016
1165,Revenue,CAHD,Bed Purchasing - South,Permanent Residential,Milestones - Unit 10,4992.88, 07-Jun-2016
1166,Revenue,CAHD,Bed Purchasing - South,Permanent Residential,Milestones - Unit 10,7779.30, 07-Jun-2016
1167,Revenue,CAHD,Jointly Funded H&SC Packages,Permanent Residential,Milestones - Unit 10,2024.58, 07-Jun-2016
1168,Revenue,CAHD,Bed Purchasing - South,Permanent Residential,Milestones - Unit 10,5186.20, 07-Jun-2016
1169,Revenue,CAHD,Jointly Funded H&SC Packages,Permanent Residential,Milestones - Unit 10,1349.72, 07-Jun-2016
1170,Revenue,CAHD,Bed Purchasing - South,Permanent Nursing,Milestones - Unit 10,2781.24, 07-Jun-2016
1171,Revenue,CAHD,Bed Purchasing - South,Permanent Nursing,Milestones - Unit 10,1301.04, 07-Jun-2016
1172,Revenue,CAHD,Bed Purchasing - South,Permanent Residential,Milestones - Unit 10,3679.64, 07-Jun-2016
1173,Revenue,CAHD,Bed purchasing - Elderly S117 - South,Permanent Nursing,Milestones - Unit 10,7816.24, 07-Jun-2016
1174,Revenue,CAHD,Bed Purchasing - North,Permanent Nursing,Milestones - Unit 10,1460.00, 07-Jun-2016
1175,Revenue,CAHD,Bed Purchasing - North,Permanent Residential,Milestones - Unit 10,8970.04, 07-Jun-2016
1176,Revenue,CAHD,South Glos Users in South Glos Homes,Permanent Nursing,Milestones - Unit 10,912.00, 07-Jun-2016
1177,Revenue,CAHD,Bed Purchasing - South,Permanent Residential,Milestones - Unit 10,11491.80, 07-Jun-2016
1178,Revenue,CAHD,Bed Purchasing - South,Permanent Residential,Milestones - Unit 10,4211.56, 07-Jun-2016
1179,Revenue,CAHD,Bed Purchasing - North,Permanent Nursing,Milestones - Unit 10,4338.88, 07-Jun-2016
1180,Revenue,CAHD,Bed purchasing -S28A  Under 65 - North,Permanent Residential,Milestones - Unit 10,5450.24, 07-Jun-2016
1181,Revenue,CAHD,Bed purchasing - S28A Under 65 - South,Permanent Residential,Milestones - Unit 10,5590.24, 07-Jun-2016
1182,Revenue,CAHD,Bed Purchasing - South,Permanent Residential,Milestones - Unit 10,1324.64, 07-Jun-2016
1183,Revenue,CAHD,Bed Purchasing - South,Permanent Residential,Milestones - Unit 10,5115.28, 07-Jun-2016
1184,Revenue,CAHD,Bed Purchasing - South,Permanent Residential,Milestones - Unit 10,5676.44, 07-Jun-2016
1185,Revenue,CAHD,Bed purchasing - S28A Under 65 - South,Permanent Nursing,Milestones - Unit 10,7458.52, 07-Jun-2016
1186,Revenue,CAHD,MH Purchasing - Younger,Permanent Residential,Milestones - Unit 10,869.20, 07-Jun-2016
1187,Revenue,CAHD,Bed Purchasing - South,Permanent Residential,Milestones - Unit 10,5185.20, 07-Jun-2016
1188,Revenue,CAHD,Bed Purchasing - South,Permanent Residential,Milestones - Unit 10,5235.36, 07-Jun-2016
1189,Revenue,CAHD,Bed Purchasing - North,Permanent Residential,Milestones - Unit 10,4359.12, 07-Jun-2016
1190,Revenue,CAHD,Bed purchasing -S28A  Under 65 - North,Permanent Nursing,Milestones - Unit 10,5394.36, 07-Jun-2016
1191,Revenue,CAHD,Bed Purchasing - North,Permanent Residential,Milestones - Unit 10,4754.08, 07-Jun-2016
1192,Revenue,CAHD,Bed purchasing -S28A  Under 65 - North,Permanent Residential,Milestones - Unit 10,7237.44, 07-Jun-2016
1193,Revenue,CAHD,Bed purchasing -S28A  Under 65 - North,Permanent Nursing,Milestones - Unit 10,5949.20, 07-Jun-2016
1194,Revenue,CAHD,Bed Purchasing - South,Permanent Residential,Milestones - Unit 10,3295.32, 07-Jun-2016
1195,Revenue,CAHD,Bed purchasing -S28A  Under 65 - North,Permanent Residential,Milestones - Unit 10,6926.36, 07-Jun-2016
1196,Revenue,CAHD,Bed purchasing - S28A Under 65 - South,Permanent Residential,Milestones - Unit 10,4642.40, 07-Jun-2016
1197,Revenue,CAHD,Bed Purchasing - S28A - Over 65- North,Permanent Residential,Milestones - Unit 10,6751.80, 07-Jun-2016
1198,Revenue,CAHD,Bed purchasing -S28A  Under 65 - North,Permanent Residential,Milestones - Unit 10,7197.64, 07-Jun-2016
1199,Revenue,CAHD,Bed purchasing -S28A  Under 65 - North,Permanent Residential,Milestones - Unit 10,7237.64, 07-Jun-2016
1200,Revenue,CAHD,Bed Purchasing - LD S28A- Over 65- South,Permanent Residential,Milestones - Unit 10,4183.96, 07-Jun-2016
1201,Revenue,CAHD,Bed purchasing - S28A Under 65 - South,Permanent Residential,Milestones - Unit 10,4514.88, 07-Jun-2016
1202,Revenue,CAHD,Bed purchasing - S28A Under 65 - South,Permanent Residential,Milestones - Unit 10,3759.36, 07-Jun-2016
1203,Revenue,CAHD,Bed Purchasing - LD S28A- Over 65- South,Permanent Residential,Milestones - Unit 10,5201.24, 07-Jun-2016
1204,Revenue,CAHD,Bed Purchasing - LD S28A- Over 65- South,Permanent Residential,Milestones - Unit 10,4853.32, 07-Jun-2016
1205,Revenue,CAHD,Bed Purchasing - LD S28A- Over 65- South,Permanent Residential,Milestones - Unit 10,5185.08, 07-Jun-2016
1206,Revenue,CAHD,Bed Purchasing - LD S28A- Over 65- South,Permanent Residential,Milestones - Unit 10,4445.28, 07-Jun-2016
1207,Revenue,CAHD,Bed Purchasing - LD S28A- Over 65- South,Permanent Residential,Milestones - Unit 10,5282.28, 07-Jun-2016
1208,Revenue,CAHD,Bed Purchasing - S28A - Over 65- North,Permanent Residential,Milestones - Unit 10,2930.80, 07-Jun-2016
1209,Revenue,CAHD,Section 117 Placements MH Younger,Permanent Residential,Milestones - Unit 10,1392.00, 07-Jun-2016
1210,Revenue,CAHD,Bed Purchasing - South,Permanent Residential,Milestones - Unit 10,869.20, 07-Jun-2016
1211,Revenue,CAHD,Bed Purchasing - Southmead Hospital,Permanent Nursing,Milestones - Unit 10,8631.73, 07-Jun-2016
1212,Revenue,CAHD,Bed Purchasing - Southmead Hospital,Permanent Nursing,Milestones - Unit 10,5894.84, 07-Jun-2016
1213,Revenue,CAHD,Bed Purchasing - North,Permanent Residential,Milestones - Unit 10,4398.36, 07-Jun-2016
1214,Revenue,CAHD,Bed Purchasing - North,Permanent Nursing,Milestones - Unit 10,7038.56, 07-Jun-2016
1215,Revenue,CAHD,Bed Purchasing - South,Permanent Residential,Milestones - Unit 10,4381.84, 07-Jun-2016
1216,Revenue,CAHD,Bed purchasing -S28A  Under 65 - North,Permanent Residential,Milestones - Unit 10,5820.32, 07-Jun-2016
1217,Revenue,CAHD,Bed Purchasing - S28A - Over 65- North,Permanent Residential,Milestones - Unit 10,3672.60, 07-Jun-2016
1218,Revenue,CAHD,Bed Purchasing - Southmead Hospital,Permanent Residential,Milestones - Unit 10,7582.14, 07-Jun-2016
1219,Revenue,CAHD,MH Purchasing - Younger,Permanent Residential,Milestones - Unit 10,1070.20, 07-Jun-2016
1220,Revenue,CAHD,Bed Purchasing - S28A - Over 65- North,Permanent Residential,Milestones - Unit 10,3278.64, 07-Jun-2016
1221,Revenue,CAHD,Bed Purchasing - LD S28A- Over 65- South,Permanent Residential,Milestones - Unit 10,3962.56, 07-Jun-2016
1222,Revenue,CAHD,Bed purchasing - S28A Under 65 - South,Permanent Residential,Milestones - Unit 10,7955.94, 07-Jun-2016
1223,Revenue,CAHD,Bed purchasing - S28A Under 65 - South,Permanent Residential,Milestones - Unit 10,5303.96, 07-Jun-2016
1224,Revenue,CAHD,Bed purchasing - S28A Under 65 - South,Permanent Nursing,Milestones - Unit 10,5300.36, 07-Jun-2016
1225,Revenue,CAHD,Bed Purchasing - LD S28A- Over 65- South,Permanent Nursing,Milestones - Unit 10,5338.96, 07-Jun-2016
1226,Revenue,CAHD,Bed Purchasing - LD S28A- Over 65- South,Permanent Residential,Milestones - Unit 10,4855.28, 07-Jun-2016
1227,Revenue,CAHD,Bed Purchasing - LD S28A- Over 65- South,Permanent Residential,Milestones - Unit 10,4697.92, 07-Jun-2016
1228,Revenue,CAHD,Bed purchasing - S28A Under 65 - South,Permanent Residential,Milestones - Unit 10,6204.36, 07-Jun-2016
1229,Revenue,CAHD,Bed Purchasing - LD S28A- Over 65- South,Permanent Residential,Milestones - Unit 10,4766.88, 07-Jun-2016
1230,Revenue,CAHD,Bed Purchasing - S28A - Over 65- North,Permanent Nursing,Milestones - Unit 10,4852.12, 07-Jun-2016
1231,Revenue,CAHD,Bed Purchasing - South,Permanent Nursing,Milestones - Unit 10,3364.96, 07-Jun-2016
1232,Revenue,CAHD,Bed Purchasing - S28A - Over 65- North,Permanent Residential,Milestones - Unit 10,4686.32, 07-Jun-2016
1233,Revenue,CAHD,Bed purchasing - S28A Under 65 - South,Permanent Residential,Milestones - Unit 10,4878.44, 07-Jun-2016
1234,Revenue,CAHD,Bed Purchasing - S28A - Over 65- North,Permanent Residential,Milestones - Unit 10,4598.88, 07-Jun-2016
1235,Revenue,CAHD,Bed purchasing -S28A  Under 65 - North,Permanent Residential,Milestones - Unit 10,7237.64, 07-Jun-2016
1236,Revenue,CAHD,Bed purchasing -S28A  Under 65 - North,Permanent Residential,Milestones - Unit 10,3390.56, 07-Jun-2016
1237,Revenue,CAHD,Bed Purchasing - North,Permanent Residential,Milestones - Unit 10,3194.72, 07-Jun-2016
1238,Revenue,CAHD,Jointly Funded H&SC Packages,Permanent Residential,Milestones - Unit 10,613.36, 07-Jun-2016
1239,Revenue,CAHD,Bed Purchasing - S28A - Over 65- North,Permanent Residential,Milestones - Unit 10,3500.64, 07-Jun-2016
1240,Revenue,CAHD,Bed Purchasing - North,Respite Emergency - Residential,Milestones - Unit 10,13071.67, 07-Jun-2016
1241,Revenue,CAHD,Bed Purchasing - North,Permanent Nursing,Milestones - Unit 10,1337.20, 07-Jun-2016
1242,Revenue,CAHD,MH Purchasing - Younger,Permanent Nursing,Milestones - Unit 10,961.20, 07-Jun-2016
1243,Revenue,CAHD,MH Purchasing - Younger,Permanent Nursing,Milestones - Unit 10,961.20, 07-Jun-2016
1244,Revenue,CAHD,Bed Purchasing - South,Permanent Residential,Milestones - Unit 10,3319.32, 07-Jun-2016
1245,Revenue,CAHD,Bed purchasing - S28A Under 65 - South,Permanent Residential,Milestones - Unit 10,6069.84, 07-Jun-2016
1246,Revenue,CAHD,Bed purchasing - S28A Under 65 - South,Permanent Residential,Milestones - Unit 10,6142.88, 07-Jun-2016
1247,Revenue,CAHD,Bed Purchasing - Southmead Hospital,Permanent Nursing,Milestones - Unit 10,5920.40, 07-Jun-2016
1248,Revenue,CAHD,Bed Purchasing - LD S28A- Over 65- South,Permanent Residential,Milestones - Unit 10,4445.28, 07-Jun-2016
1249,Revenue,CAHD,Bed Purchasing - South,Permanent Residential,Milestones - Unit 10,6070.28, 07-Jun-2016
1250,Revenue,CAHD,Bed Purchasing - LD S28A- Over 65- South,Permanent Nursing,Milestones - Unit 10,5338.96, 07-Jun-2016
1251,Revenue,CAHD,Bed Purchasing - LD S28A- Over 65- South,Permanent Residential,Milestones - Unit 10,9032.60, 07-Jun-2016
1252,Revenue,CAHD,Bed Purchasing - South,Permanent Residential,Milestones - Unit 10,4435.16, 07-Jun-2016
1253,Revenue,CAHD,Bed Purchasing - South,Permanent Residential,Milestones - Unit 10,1255.28, 07-Jun-2016
1254,Revenue,CAHD,Bed purchasing -S28A  Under 65 - North,Permanent Nursing,Milestones - Unit 10,7807.00, 07-Jun-2016
1255,Revenue,CAHD,Bed Purchasing - North,Permanent Nursing,Milestones - Unit 10,1480.16, 07-Jun-2016
1256,Revenue,CAHD,Section 117 Placements MH Younger,Permanent Residential,Milestones - Unit 10,1392.00, 07-Jun-2016
1257,Revenue,CAHD,Bed Purchasing - South,Permanent Nursing,Milestones - Unit 10,3430.56, 07-Jun-2016
